Cogmind - Beta 13 @@@ ROGUE MODE // 2024.04.20 @ 00:01:43 Player: Millea Result: Destroyed by H-88 Terminator with Heavy Machine Gun Performance ------------- Evolutions (8) 4000 Regions Visited (30) 6000 Robots Destroyed (467) 2335 Value Destroyed (23658) 23658 Prototype IDs (92) 1840 Alien Tech Used (0) 0 Bonus (15825) 15825 TOTAL SCORE: 53658 Bonus ------- High Alert Combat Kills 4043 Follower Combat Kills 4188 Entered Garrisons 1000 Used RIF Installer 3500 Entered DSFs 500 Met Data Miner 300 Hacked Protovariant 500 Scanned by Researcher 500 Acquired SGEMP 2000 Friendly Fire -706 Cogmind --------- Core Integrity 0/1450 Matter 83/300 Energy 99/100 System Corruption 6% Temperature Cool (9) Movement Core (50) Location -2/Quarantine Parts ------- > --- POWER (2) -------- (None) > --- PROPULSION (6) --- Improved Gyrokinetic Inverter > --- UTILITY (12) ----- Advanced Melee Analysis Suite > --- WEAPON (3) ------- (None) > --- INVENTORY (5) ---- High-powered Transdimensional Reconstructor Field Lobotomy Kit (1) SGEMP Prototype Peak State ------------ > --- POWER ------------ Enhanced Nuclear Core Light Quantum Reactor > --- PROPULSION ------- Flexi-carbon Leg Enhanced Flexi-carbon Leg Myomer Leg Myomer Leg Myomer Leg High-density Centrium Leg > --- UTILITY ---------- Experimental Power Amplifier Advanced Cooling System Advanced Cooling System Advanced Cooling System Experimental Cooling System Experimental Cooling System Advanced Coolant Injector High-capacity Storage Unit Kinecellerator Improved Light Armor Plating Layered Medium Armor Plating Centrium Light Armor Plating > --- WEAPON ----------- Linear Accelerator Omega Cannon > --- INVENTORY -------- Experimental Matter Compressor Improved Focal Shield Advanced Shield Generator Hypervelocity EM Gauss Rifle High-powered Disruptor Cannon Enhanced Nova Cannon Potential Cannon Potential Cannon Linear Accelerator Linear Accelerator Smartbomb Launcher Improved Remote Datajack Field Lobotomy Kit SGEMP Prototype [Rating: 180] Favorites ----------- Power Reinforced Fission Core Engine Improved Deuterium Engine Power Core Reinforced Fission Core Reactor Reinforced Quantum Reactor Propulsion Light Treads Treads Light Treads Leg Flexi-carbon Leg Wheel Wheel Hover Unit Backup Propulsion I Flight Unit Cooled Field Propulsion Drive Utility Large Storage Unit Device Advanced Cooling System Storage Large Storage Unit Processor Improved Target Analyzer Hackware Relay Coupler [NC] Protection Medium Armor Plating Weapon Heavy Ion Cannon Energy Gun Quantum Rifle Energy Cannon Heavy Ion Cannon Ballistic Gun KE Penetrator Ballistic Cannon Antimatter Cannon Launcher Long-range Missile Launcher Special Weapon Remote Datajack Special Melee Weapon Improved Datajack Build | -11 -10 -10 -9 -9 -9 -8 -8 -8 -8 -8 -7 -7 -7 -7 -6 -6 -6 -6 -5 -5 -5 -5 -5 -5 -4 -4 -3 -3 -2 -2 ------- Run | Yrd Mat Min Mat Min Exi Min Mat Gar Mat Gar Fac Gar Fac Gar Fac Low Low Dat Pro Fac Gar Fac Upp Upp Fac DSF Res Tes Res Qua Slots Evolved 16 | . . . 2 . . . 2 . . . 2 . . . 2 . . . . 2 . . . . 2 . 2 . 2 . Power 1 | . . . . . . . . . . . 1 . . . . . . . . . . . . . . . . . . . Propulsion 4 | . . . . . . . 1 . . . . . . . 1 . . . . . . . . . 2 . . . . . Utility 10 | . . . 1 . . . 1 . . . 1 . . . 1 . . . . 2 . . . . . . 2 . 2 . Weapon 1 | . . . 1 . . . . . . . . . . . . . . . . . . . . . . . . . . . Parts Attached 495 | 8 4 1 22 5 2 . 17 25 16 16 20 16 14 15 22 5 4 . 3 54 13 74 6 . 4 25 6 77 13 8 Power 39 | 1 1 . 1 . . . 1 3 . 2 2 . 1 4 . . . . . 5 . 6 1 . . 2 . 7 2 . Engine 7 | 1 1 . 1 . . . 1 1 . . 1 . . . . . . . . . . 1 . . . . . . . . Core 20 | . . . . . . . . 2 . 2 1 . 1 3 . . . . . 3 . 5 1 . . 1 . 1 . . Reactor 12 | . . . . . . . . . . . . . . 1 . . . . . 2 . . . . . 1 . 6 2 . Propulsion 91 | 3 . . 5 . . . 6 4 2 3 . . 1 2 4 . . . 1 9 3 17 1 . . 8 1 16 2 3 Treads 55 | 2 . . 5 . . . 6 4 2 3 . . 1 2 4 . . . 1 6 3 15 1 . . . . . . . Leg 28 | . . . . . . . . . . . . . . . . . . . . 1 . 2 . . . 8 1 16 . . Wheel 6 | 1 . . . . . . . . . . . . . . . . . . . 2 . . . . . . . . 1 2 Hover 1 | . . . . . . . . . . . . . . . . . . . . . . . . . . . . . . 1 Flight 1 | . . . . . . . . . . . . . . . . . . . . . . . . . . . . . 1 . Utility 190 | 2 2 1 5 3 1 . 9 5 10 7 10 6 7 4 7 1 1 . 1 22 7 22 1 . 1 9 5 30 7 4 Device 82 | 1 . . 1 1 1 . 2 3 1 2 1 3 1 1 4 1 1 . 1 11 5 9 . . . 5 2 21 2 2 Storage 6 | 1 . . 1 . . . . . . . . . . . . . . . . 1 . . . . . . 1 1 1 . Processor 15 | . . . . . . . . . . 1 . . . . 2 . . . . 1 1 1 1 . 1 3 1 1 1 1 Hackware 39 | . . . 1 . . . . 2 6 2 7 . 6 3 1 . . . . 3 . 5 . . . 1 . 1 . 1 Protection 48 | . 2 1 2 2 . . 7 . 3 2 2 3 . . . . . . . 6 1 7 . . . . 1 6 3 . Artifact . | . . . . . . . . . . . . . . . . . . . . . . . . . . . . . . . Weapon 175 | 2 1 . 11 2 1 . 1 13 4 4 8 10 5 5 11 4 3 . 1 18 3 29 3 . 3 6 . 24 2 1 Energy Gun 13 | . . . 3 . . . . . . . . . . . . . . . . 1 . . . . 1 3 . 5 . . Energy Cannon 41 | . . . 1 . . . 1 4 . . . 3 . 1 2 . 2 . . 7 . 7 . . 1 . . 10 2 . Ballistic Gun 55 | 2 1 . 6 1 1 . . 6 1 2 4 4 1 4 2 1 1 . . 2 3 11 . . . 1 . 1 . . Ballistic Cannon 21 | . . . . . . . . . 1 1 . 1 1 . 2 1 . . . 4 . 2 1 . 1 2 . 4 . . Launcher 12 | . . . 1 1 . . . 2 . . . 2 1 . . 1 . . 1 . . 1 1 . . . . 1 . . Special Weapon 30 | . . . . . . . . . 1 1 4 . 2 . 5 1 . . . 4 . 8 1 . . . . 3 . . Impact Weapon . | . . . . . . . . . . . . . . . . . . . . . . . . . . . . . . . Slashing Weapon . | . . . . . . . . . . . . . . . . . . . . . . . . . . . . . . . Piercing Weapon . | . . . . . . . . . . . . . . . . . . . . . . . . . . . . . . . Special Melee Weapon 3 | . . . . . . . . 1 1 . . . . . . . . . . . . . . . . . . . . 1 Unidentified Prototypes 32 | . . . 3 1 . . . . . . 1 . 1 . . . . . . 3 1 1 . . . . 3 16 1 1 Corrupted Parts 6 | . . . . . . . . . . . . . . . . . . . . . . . . . . . . 6 . . System Corruption 46 | . . . . . . . . . . . . . . . . . . . . . . . . . . . . 46 . . Parts Lost 132 | . 2 . 1 . . . 5 8 3 . . 4 . 1 3 . 1 . 2 16 2 27 5 . . 12 . 10 24 6 Power 16 | . 1 . . . . . 1 3 . . . . . . . . . . . 1 . 3 . . . 2 . 2 3 . Propulsion 35 | . . . 1 . . . . 3 2 . . . . . . . . . 1 4 . 6 3 . . 3 . 2 7 3 Utility 58 | . 1 . . . . . 4 2 1 . . 3 . . 1 . . . 1 10 2 10 1 . . 3 . 6 11 2 Weapon 23 | . . . . . . . . . . . . 1 . 1 2 . 1 . . 1 . 8 1 . . 4 . . 3 1 Highest Loss Streak 18 | . 2 . 1 . . . 3 3 2 . . 2 . 1 3 . 1 . 2 3 1 13 4 . . 7 . 3 18 3 To Critical Strikes 7 | . . . 1 . . . . . . . . . . . 1 . . . . 1 . 2 . . . . . . 2 . Average Slot Usage (%) 90 | . 100 100 98 99 100 100 99 95 94 95 89 91 89 90 86 86 86 73 75 88 89 89 81 70 65 78 99 93 72 11 Engine 3 | . 14 14 11 11 11 11 8 5 . . 6 7 7 3 . . . . . . . . . . . . . . . . Core 6 | . . . . . . . . 3 9 9 7 7 7 11 13 13 13 13 13 5 5 7 11 11 10 6 4 3 2 . Reactor 1 | . . . . . . . . . . . . . . . . . . . . 5 5 1 . . . 1 4 4 3 . Treads 15 | . 28 28 21 22 22 22 27 26 23 23 15 15 14 15 13 13 13 13 13 9 12 13 13 5 5 1 . . . . Leg 2 | . . . . . . . . . . . . . . . . . . . . 2 . 2 . . . 17 28 27 15 . Device 13 | . 5 . 7 . 4 11 3 17 1 6 5 9 10 11 17 25 26 26 23 17 26 18 11 11 10 11 18 21 26 2 Storage 7 | . 14 14 11 11 11 11 9 9 9 9 7 7 7 7 6 6 6 6 6 5 5 5 5 5 5 5 4 4 4 . Processor 2 | . . . . . . . . . . . . . . . 5 6 6 6 6 2 8 5 10 11 12 15 14 3 2 2 Hackware 7 | . . . 2 2 . . . 3 13 13 18 5 15 16 8 . . . . 8 . 8 5 5 5 6 8 5 . . Protection 6 | . 8 14 11 19 17 11 22 1 11 7 3 14 1 . . . . . . 5 3 3 2 . . . . 6 8 . Energy Cannon 6 | . . . 3 . . . 3 11 18 18 15 11 15 7 1 1 . . . 6 . 6 3 . 1 2 . 4 . . Ballistic Gun 10 | . 28 28 22 24 33 33 23 14 2 4 3 6 1 11 16 7 8 6 6 3 16 7 . . . 1 . . . . Ballistic Cannon 1 | . . . . . . . . . . 2 . 2 . . . 5 6 . . 4 . . 10 11 8 1 . 1 6 . Naked Turns 31 | . . . . . . . . . . . . . . . . . . . . . . . . . . . . . 31 . Heaviest Build 135 | 11 14 16 45 52 51 45 55 59 59 62 69 71 71 89 89 97 97 80 88 135 123 123 88 80 82 83 87 128 129 2 Greatest Support 158 | 40 40 40 40 40 40 40 60 60 60 97 97 97 97 97 140 140 140 140 140 140 150 150 120 30 30 128 144 158 155 7 Greatest Overweight (x) 42 | . . . 1 1 1 1 . . 1 2 . . . . . . . . . 42 1 2 2 2 2 2 . 1 9 . Average Overweight (x) . | . . . . 1 1 1 . . . . . . . . . . . . . 2 . . . 2 2 . . . . . Largest Inventory Capacity 20 | 8 8 8 15 15 15 15 15 15 15 15 15 15 15 15 15 15 15 15 15 20 20 20 20 20 20 20 20 20 20 5 Average Capacity 16 | 7 8 8 9 15 15 15 15 15 15 15 15 15 15 15 15 15 15 15 15 19 20 20 20 20 20 20 20 20 18 5 Most Carried 20 | 7 8 8 14 15 15 15 15 15 15 15 15 15 15 15 15 14 15 15 15 20 20 20 13 12 13 20 20 20 20 5 Average Carried 15 | 5 7 7 8 14 14 15 14 14 13 14 14 14 14 14 14 13 14 15 13 18 19 16 11 12 12 14 19 19 17 4 Final Capacity 20 | 8 8 8 15 15 15 15 15 15 15 15 15 15 15 15 15 15 15 15 15 20 20 20 20 20 20 20 20 20 20 5 Final Carried 20 | 7 7 8 14 15 15 15 12 15 15 15 15 15 15 15 14 14 15 15 15 19 20 9 12 12 13 20 20 20 20 4 Class Distribution -------------------- 23% | Tank 15% | Scavenger-Tank 13% | Commander-Tank 10% | Gunner 9% | Scavenger-Gunner 7% | Mutant 5% | Bothacker-Tank 4% | Commander-Gunner Dominant Class ---------------- Mutant | -10/Materials Mutant | -10/Mines Tank | -9/Materials Tank | -9/Mines Tank | -9/Exiles Tank | -8/Mines Scavenger-Tank | -8/Materials Scavenger-Gunner | -8/Garrison Bothacker-Mutant | -8/Materials Commander-Tank | -8/Garrison Commander-Tank | -7/Factory Bothacker-Tank | -7/Garrison Bothacker-Tank | -7/Factory Commander-Tank | -7/Garrison Gunner | -6/Factory Tank | -6/Lower Caves Tank | -6/Lower Caves Mutant | -6/Data Miner Mutant | -5/Proximity Caves Tank | -5/Factory Scavenger-Tank | -5/Garrison Scavenger-Gunner | -5/Factory Tank | -5/Upper Caves Gunner | -5/Upper Caves Gunner | -4/Factory Scavenger-Gunner | -4/DSF Scavenger-Gunner | -3/Research Scavenger-Tank | -3/Testing Scavenger-Tank | -2/Research Mutant | -2/Quarantine Resources | -11 -10 -10 -9 -9 -9 -8 -8 -8 -8 -8 -7 -7 -7 -7 -6 -6 -6 -6 -5 -5 -5 -5 -5 -5 -4 -4 -3 -3 -2 -2 ----------- Run | Yrd Mat Min Mat Min Exi Min Mat Gar Mat Gar Fac Gar Fac Gar Fac Low Low Dat Pro Fac Gar Fac Upp Upp Fac DSF Res Tes Res Qua Matter Collected 14962 | 326 156 14 620 231 . 224 670 599 304 316 435 660 378 423 1134 519 594 . 134 1104 1426 1862 266 . 173 396 60 1258 680 . Remotely . | . . . . . . . . . . . . . . . . . . . . . . . . . . . . . . . Salvage Created 20270 | 170 354 . 1135 29 . 419 1435 727 354 463 573 1122 154 321 2148 710 721 . 194 1981 1902 2930 134 . . 465 86 1185 558 . Parts 1003 | 13 24 . 58 7 . 25 71 35 21 34 28 56 9 22 104 24 28 . 18 98 85 156 7 . . 7 . 52 21 . Haulers Intercepted 11 | . . . 3 . . . 1 . . . 2 . . . 1 . . . . 2 . 1 . . . . . 1 . . Recyclers Shooed 21 | . . . 2 . . . 5 . . . 1 . . . 5 . . . . 4 . 1 . . . . . 1 2 . Parts Field Recycled . | . . . . . . . . . . . . . . . . . . . . . . . . . . . . . . . Retrieved Matter . | . . . . . . . . . . . . . . . . . . . . . . . . . . . . . . . Parts Self-Destructed 73 | . . . . . . . . . . . . . . . . 18 38 . 11 . . . 5 1 . . . . . . Prevented 10 | . . . . . . . . . . . . . . . . 5 2 . 1 . . . . 2 . . . . . . Kills | -11 -10 -10 -9 -9 -9 -8 -8 -8 -8 -8 -7 -7 -7 -7 -6 -6 -6 -6 -5 -5 -5 -5 -5 -5 -4 -4 -3 -3 -2 -2 ------- Run | Yrd Mat Min Mat Min Exi Min Mat Gar Mat Gar Fac Gar Fac Gar Fac Low Low Dat Pro Fac Gar Fac Upp Upp Fac DSF Res Tes Res Qua Combat Hostiles Destroyed 389 | . 10 . 12 4 . 8 21 22 7 13 6 29 3 6 26 16 17 . 17 37 30 60 8 . . 7 1 18 11 . Melee 7 | . . . . . . . . . . . . . . . . . . . . . . 7 . . . . . . . . Guns 180 | . 10 . 11 . . 8 15 10 2 1 2 12 . 3 19 7 5 . . 14 30 27 . . . . 1 3 . . Cannons 129 | . . . 1 . . . 6 6 5 11 4 10 2 3 5 2 8 . . 21 . 18 3 . . 5 . 9 10 . AOE 62 | . . . . 4 . . . 6 . . . 7 . . . 7 4 . 17 2 . 7 4 . . . . 4 . . Classes Destroyed 24 | 3 2 . 5 . . 2 2 1 . 3 . . . . 1 . . . . . . 2 . . . . . 3 . . Worker 20 | 1 . . 4 . . 1 1 . . . . . . . 6 . . . . 1 . 4 . . . . . 2 . . Builder 10 | . . . . . . . 1 . . . . . . . . . . . . 1 . 6 . . . . . 1 1 . Tunneler 5 | 3 . . 1 . . 1 . . . . . . . . . . . . . . . . . . . . . . . . Hauler 11 | . . . 3 . . . 1 . . . 2 . . . 1 . . . . 2 . 1 . . . . . 1 . . Recycler 13 | 1 . . 2 . . . 2 . . . . . . . 4 . . . . 2 . 1 . . . . . . 1 . Carrier 1 | . . . . . . . . . . . . . . . . . . . . . . 1 . . . . . . . . Operator 1 | . . . 1 . . . . . . . . . . . . . . . . . . . . . . . . . . . Watcher 12 | . . . 4 . . . 1 . . 1 1 . . . 1 . . . . . . 2 . . . . . . 2 . Swarmer 88 | . 3 . . 4 . . . 3 . 4 . 9 . . 4 2 4 . 12 7 12 18 5 . . 1 . . . . Cutter 2 | . . . . . . . . 2 . . . . . . . . . . . . . . . . . . . . . . Saboteur 2 | . . . . . . . . . . . . . . . . . . . . . . 2 . . . . . . . . Grunt 139 | . 7 . 6 . . 4 13 14 4 1 4 11 . 1 2 7 6 . 3 7 13 19 2 . . 3 . 8 4 . Brawler 13 | . . . 1 . . 1 1 . 1 1 . 1 . . . 3 . . . 1 . 1 . . . 1 . . 1 . Duelist 13 | . . . . . . 1 . . . 1 . 1 . . . 3 2 . . 1 . 1 1 . . 1 . . 1 . Protector 2 | . . . . . . . . . . 1 . . . . 1 . . . . . . . . . . . . . . . Researcher 2 | . . . . . . . . . . . . . . . . . . . . . . . . . . . . 2 . . Sentry 50 | . . . 6 . . . 6 3 1 2 4 4 1 1 5 1 3 . . 4 4 4 . . . . 1 . . . Demolisher 2 | . . . . . . . . . . 1 . . . . 1 . . . . . . . . . . . . . . . Specialist 3 | . . . . . . . . . . . . . . . 3 . . . . . . . . . . . . . . . Hunter 25 | . . . . . . 2 . . . 1 . . . . 5 . . . 2 5 . 3 . . . 1 . 2 4 . Programmer 48 | . . . . . . . 1 . 1 . . 3 2 4 5 . 2 . . 12 . 12 . . . . . 5 1 . Behemoth 2 | . . . . . . . . . . 1 . . . . . . . . . . 1 . . . . . . . . . Striker 2 | . . . . . . . . . . . . . . . . . . . . . . . . . . . . 2 . . Alpha 7 1 | . . . . . . . . . . . . . . . . . . . . . . . . . . . . 1 . . Best Kill Streak 12 | 3 4 . 3 4 . 4 6 7 2 4 2 10 1 2 5 9 5 . 8 5 12 12 5 . . 3 1 6 6 . Combat Bots Only 12 | . 4 . 2 4 . 4 3 7 2 4 1 10 1 2 4 9 5 . 8 5 12 12 5 . . 3 1 2 5 . Max Kills in Single Turn 5 | 1 2 . 2 4 . 1 2 2 1 1 2 4 1 1 2 4 3 . 5 1 2 4 2 . . 1 1 2 1 . Gunslinging 1 | . 1 . 1 . . . . . . . . . . . . . . . . . 1 1 . . . . . . . . Exploded 5 | . . . . 4 . . . 2 . . . 4 . . . 4 3 . 5 1 . 2 2 . . . . 2 . . Melee 1 | . . . . . . . . . . . . . . . . . . . . . . 1 . . . . . . . . Uniques/NPCs Destroyed . | . . . . . . . . . . . . . . . . . . . . . . . . . . . . . . . Combat | -11 -10 -10 -9 -9 -9 -8 -8 -8 -8 -8 -7 -7 -7 -7 -6 -6 -6 -6 -5 -5 -5 -5 -5 -5 -4 -4 -3 -3 -2 -2 -------- Run | Yrd Mat Min Mat Min Exi Min Mat Gar Mat Gar Fac Gar Fac Gar Fac Low Low Dat Pro Fac Gar Fac Upp Upp Fac DSF Res Tes Res Qua Hostile Shots Fired 3116 | . 58 . 33 8 . 22 102 129 29 31 115 271 63 63 282 45 64 . 48 287 264 501 61 . . 110 7 140 222 161 Missed 954 | . 17 . 14 1 . 4 29 31 7 9 42 99 29 18 72 12 20 . 11 78 72 130 15 . . 39 3 56 68 78 Damage Taken 33511 | . 615 . 285 131 . 227 1120 1493 386 444 687 2224 439 600 2028 390 531 . 392 3507 1474 6134 950 . . 1293 109 2927 3640 1485 Core 4346 | . 167 . 53 9 . 53 97 173 16 57 62 184 8 116 187 41 10 . 40 255 110 524 104 . . 222 . 388 543 927 Absorbed by Shields 3022 | . . . . . . . 36 29 . . 91 . 80 178 100 309 310 . 266 438 764 421 . . . . . . . . Reduced by Siege Mode 179 | . . . . . . . . . . . . 12 . . 35 . . . . 8 106 18 . . . . . . . . Redirected to Shielding 107 | . . . . . . . . . . . . 6 . . . . . . . 101 . . . . . . . . . . Ignored by Resistances 1302 | . . . . . . . 6 . . . . . . . 308 23 55 . 71 144 357 142 33 . . 106 . 57 . . Regen/Repaired (Parts) 3591 | . . . . . . . . . 49 44 162 1125 387 129 838 294 . . . 96 . 467 . . . . . . . . Core Remaining (%) 56 | 100 . 33 . . . 71 . . . 37 . . . 47 . . . . 67 . . . . . . 80 . 70 . . Volleys Fired 1300 | 20 37 . 60 1 . 17 72 80 19 44 61 83 28 32 97 29 28 . 19 102 85 160 28 . . 31 4 109 54 . Largest 3 | 2 2 . 3 1 . 3 3 3 3 3 3 3 2 3 3 3 3 . 1 3 3 3 3 . . 3 3 3 2 . Hottest 310 | 40 40 . 114 33 . 69 111 195 153 174 163 179 146 146 165 165 165 . 43 270 270 270 187 . . 218 282 310 186 . Shots Fired 2773 | 40 74 . 178 1 . 51 213 146 46 75 112 146 33 73 224 69 70 . 19 261 250 363 40 . . 43 12 170 64 . Gun 1624 | 40 74 . 175 . . 51 184 86 14 13 23 60 . 45 175 28 27 . . 79 247 212 . . . 10 12 69 . . Cannon 1008 | . . . 3 . . . 29 52 28 59 68 80 16 24 43 33 33 . . 176 3 132 34 . . 33 . 98 64 . Launcher 62 | . . . . 1 . . . 8 . . . 6 . . . 7 10 . 19 . . 6 5 . . . . . . . Special 79 | . . . . . . . . . 4 3 21 . 17 4 6 1 . . . 6 . 13 1 . . . . 3 . . Kinetic 1813 | 40 74 . 123 . . 51 184 86 14 22 23 88 2 45 185 52 55 . . 155 247 239 30 . . 12 . 28 58 . Thermal 694 | . . . 55 . . . 29 52 28 50 68 25 9 17 . . . . . 100 3 105 4 . . 31 12 102 4 . Explosive 62 | . . . . 1 . . . 8 . . . 6 . . . 7 10 . 19 . . 6 5 . . . . . . . Electromagnetic 125 | . . . . . . . . . . . . 27 5 7 33 9 5 . . . . . . . . . . 37 2 . Robot Hit Streak 35 | 12 9 . 11 6 . 9 17 12 8 11 8 15 12 8 26 13 9 . 11 17 35 17 4 . . 8 10 9 15 . Robot Miss Streak 12 | 2 3 . 3 . . 1 3 3 2 8 7 2 2 4 5 3 5 . 2 5 4 12 3 . . 5 1 5 2 . Penetration Max 2 | . . . . . . . . . . . . 1 . . 2 . 1 . . 1 1 1 . . . . . 1 . . Secondary Targets 30 | . 3 . 2 . . 3 . . . . . . . . 4 . . . . . 9 9 . . . . . . . . Max Gunslinging Chain 2 | . 1 . 1 . . 1 . . . . . . . . 1 . . . . . 1 2 . . . . . . . . Shots Hit Robots 1710 | 30 50 . 111 1 . 32 150 74 47 35 54 89 26 29 157 45 41 . 13 157 171 205 16 . . 24 11 99 43 . Core Hits 819 | 11 22 . 44 3 . 18 60 63 10 24 18 48 3 12 70 31 32 . 22 65 70 102 12 . . 8 4 50 17 . Critical Kills 42 | . . . . . . 1 . . . 1 1 2 1 . 4 4 5 . . 1 8 13 1 . . . . . . . Critical Parts Destroyed 45 | . . . . . . . 1 . . . . 3 . . 9 8 7 . . 3 8 6 . . . . . . . . Critical Strikes 122 | . . . 3 . . 1 1 . . 1 1 5 1 . 13 13 13 . . 9 16 26 3 . . 1 . 8 7 . Burn 3 | . . . 3 . . . . . . . . . . . . . . . . . . . . . . . . . . . Meltdown 3 | . . . . . . . . . . 1 . . . . . . . . . . . 1 1 . . . . . . . Destroy 84 | . . . . . . 1 1 . . . 1 5 1 . 13 12 12 . . 4 16 18 . . . . . . . . Blast 24 | . . . . . . . . . . . . . . . . . . . . 5 . 7 2 . . 1 . 3 6 . Corrupt 8 | . . . . . . . . . . . . . . . . 1 1 . . . . . . . . . . 5 1 . Melee Attacks 21 | . . . . . . . . 1 20 . . . . . . . . . . . . . . . . . . . . . Impact . | . . . . . . . . . . . . . . . . . . . . . . . . . . . . . . . Slashing . | . . . . . . . . . . . . . . . . . . . . . . . . . . . . . . . Piercing . | . . . . . . . . . . . . . . . . . . . . . . . . . . . . . . . Sneak Attacks 10 | . . . . . . . . . 10 . . . . . . . . . . . . . . . . . . . . . Combat Hostiles 1 | . . . . . . . . . 1 . . . . . . . . . . . . . . . . . . . . . Follow-up Attacks . | . . . . . . . . . . . . . . . . . . . . . . . . . . . . . . . Damage Inflicted 54761 | 235 493 . 1833 214 . 467 2625 2777 670 905 1232 3134 361 805 4536 2034 1686 . 2612 5844 4220 8019 933 . . 737 313 3973 4076 27 Guns 22786 | 235 493 . 1742 . . 452 2113 801 120 157 353 924 . 502 3472 487 539 . . 1368 4107 3650 . . . 83 313 875 . . Cannons 22067 | . . . 67 . . . 497 792 550 748 842 1378 361 303 849 489 441 . . 3948 113 3047 559 . . 654 . 2373 4056 . Explosions 9614 | . . . . 201 . . . 1184 . . . 832 . . 163 1058 706 . 2612 523 . 1246 374 . . . . 715 . . Melee . | . . . . . . . . . . . . . . . . . . . . . . . . . . . . . . . Ramming 294 | . . . 24 13 . 15 15 . . . 37 . . . 52 . . . . 5 . 76 . . . . . 10 20 27 Kinetic 29671 | 235 493 . 1083 . . 452 2113 801 120 333 353 1134 41 502 3623 713 867 . . 3041 4107 4269 490 . . 197 . 822 3882 . Thermal 14232 | . . . 726 . . . 497 792 550 572 842 489 203 303 163 . . . . 2765 113 2562 69 . . 540 313 2602 131 . Explosive 8079 | . . . . 201 . . . 1184 . . . 832 . . . 1058 706 . 2612 . . 1112 374 . . . . . . . Electromagnetic 2485 | . . . . . . . . . . . . 679 117 . 698 263 113 . . 33 . . . . . . . 539 43 . Impact . | . . . . . . . . . . . . . . . . . . . . . . . . . . . . . . . Slashing . | . . . . . . . . . . . . . . . . . . . . . . . . . . . . . . . Piercing . | . . . . . . . . . . . . . . . . . . . . . . . . . . . . . . . Highest Corruption 53 | . 2 2 . 1 1 1 1 1 5 5 . 4 5 6 4 4 4 4 4 19 19 31 31 31 . . . 53 1 6 Average Corruption 9 | . 2 2 . 1 1 1 1 1 1 5 . 3 4 5 1 4 4 4 4 9 19 25 31 31 . . . 36 1 3 Corruption Purged 1 | . . . . . . . . . . . . . . . . . . . . . . . . . . . . . . 1 Corruption Blocked 47 | . . . . . . . . . . . . . . . . . . . . . . . . . . . . 47 . . Effects 690 | . 1 2 . 1 6 4 . 8 33 29 . 22 22 30 30 28 20 2 18 95 61 170 31 2 . . . 68 5 2 Message Errors 159 | . . . . 1 2 2 . 2 9 7 . 4 5 8 7 9 5 1 3 16 11 44 4 . . . . 15 3 1 Matter Fused 164 | . . . . . 4 . . 4 8 7 . 8 8 8 6 5 3 . 4 21 17 33 12 1 . . . 13 1 1 Heat Flow Errors 81 | . 1 1 . . . . . . 4 3 . 4 1 2 5 3 3 . 5 18 5 16 4 . . . . 6 . . Energy Discharges 76 | . . . . . . . . 1 7 4 . 3 1 3 5 4 2 . 2 10 7 16 2 1 . . . 8 . . Parts Rejected 8 | . . . . . . . . . . . . . . 1 . . . . . 2 1 2 1 . . . . 1 . . Parts Fused 5 | . . . . . . . . . . . . . 1 1 . . . . 1 . 1 1 . . . . . . . . Data Loss (minor) 83 | . . 1 . . . 2 . . 3 3 . 2 2 2 3 5 3 1 2 14 7 22 3 . . . . 8 . . Data Loss (major) 28 | . . . . . . . . . 1 3 . 1 2 1 . . 1 . 1 4 2 7 . . . . . 5 . . Misfires 31 | . . . . . . . . . . 1 . . 2 3 1 2 1 . . 6 2 7 2 . . . . 3 1 . Alerts 10 | . . . . . . . . . . 1 . . . . 1 . 2 . . 2 1 1 . . . . . 2 . . Misdirections 4 | . . . . . . . . . . . . . . . . . . . . . . 3 . . . . . 1 . . Weapon Failures 41 | . . . . . . . . 1 1 . . . . 1 2 . . . . 2 7 18 3 . . . . 6 . . Overload Shots . | . . . . . . . . . . . . . . . . . . . . . . . . . . . . . . . Overflow Damage 2005 | . . . . 10 . . . 1 28 7 . 36 19 . 12 142 . . 187 289 . 256 98 . . 7 . 208 705 . Projectiles 1354 | . . . . . . . . . 28 7 . 30 19 . 12 . . . . 277 . 133 23 . . 7 . 113 705 . Explosions 648 | . . . . 10 . . . 1 . . . 6 . . . 142 . . 187 12 . 120 75 . . . . 95 . . Melee 3 | . . . . . . . . . . . . . . . . . . . . . . 3 . . . . . . . . Knockbacks 70 | . . . 1 . . . . . . 2 . . . . 1 2 5 . . 16 . 5 7 . . 2 . 7 22 . Impact 1 | . . . 1 . . . . . . . . . . . . . . . . . . . . . . . . . . . Kinetic 65 | . . . . . . . . . . 2 . . . . 1 2 4 . . 15 . 5 7 . . 2 . 7 20 . Secondary 4 | . . . . . . . . . . . . . . . . . 1 . . 1 . . . . . . . . 2 . Self-Inflicted Damage 516 | . . . . . . . . 48 . . . . . . 36 111 23 . 57 66 . . 81 . . . . 82 . 12 Shots 16 | . . . . . . . . 1 . . . . . . 1 3 2 . 1 3 . . 3 . . . . 2 . . Rammed 39 | . . . 4 2 . 1 3 . . . 3 . . . 6 . . . . 3 . 8 . . . . . . . 9 Targets Rammed 52 | . . . 4 2 . 3 4 . . . 3 . . . 7 . . . . 3 . 12 . . . . . 1 4 9 Kicked 5 | . . . . . . . . . . . . . . . . . . . . . . . . . . . . 1 4 . Crushed 8 | . . . . . . 2 1 . . . . . . . 1 . . . . . . 4 . . . . . . . . Highest Temperature 465 | . 190 220 189 . . 53 216 199 254 313 322 356 162 334 273 184 319 . 202 340 238 410 465 . . 411 . 395 39 310 Average Temperature 89 | . 28 113 27 . . 16 66 86 97 92 106 138 48 88 66 60 125 . 94 110 22 97 173 . . 157 . 194 26 176 Received Heat Transfer 6437 | . 297 . 132 . . 72 531 717 117 30 135 780 66 129 270 133 147 . 30 307 573 1172 378 . . 156 27 76 108 54 Effects 18 | . . . . . . . . . . . . 1 . 2 . . 5 . . 1 . 2 4 . . . . 3 . . Shutdowns 2 | . . . . . . . . . . . . . . . . . . . . . . . 1 . . . . 1 . . Energy Bleed 6 | . . . . . . . . . . . . 1 . 2 . . 1 . . . . 1 1 . . . . . . . Interference 9 | . . . . . . . . . . . . . . . . . 3 . . 1 . 1 2 . . . . 2 . . Short Circuit 1 | . . . . . . . . . . . . . . . . . 1 . . . . . . . . . . . . . Siege Activations 10 | . . . . . . . . . . . . 1 . . 1 1 . . . 1 4 2 . . . . . . . . Total Turns 312 | . . . . . . . . . . . . 26 . . 145 16 . . . 19 75 31 . . . . . . . . Longest Duration 145 | . . . . . . . . . . . . 26 . . 145 16 . . . 19 32 27 . . . . . . . . Robots Corrupted 6 | . . . . . . . . . . . . . 1 . 2 . . . . . . . . . . . . 2 1 . Combat Hostiles 6 | . . . . . . . . . . . . . 1 . 2 . . . . . . . . . . . . 2 1 . Parts Fried 14 | . . . . . . . . . . . . 1 . . 9 1 . . . . . . . . . . . 3 . . Impact Corruptions 1 | . . . . . . . . . . . . . . . . . . . . . . 1 . . . . . . . . Robots Melted 5 | . . . . . . . . . . 1 . . . . . . . . . . . 1 1 . . 2 . . . . Combat Hostiles 4 | . . . . . . . . . . 1 . . . . . . . . . . . 1 1 . . 1 . . . . Parts Melted 24 | . . . 1 . . . . 1 . 3 2 . 1 . 1 . . . . 3 . . 1 . . 6 4 . 1 . Heat Transferred 13028 | . . . 1739 . . . 629 1073 740 730 1101 629 222 321 150 . . . . 1907 . 581 74 . . 861 407 1753 111 . Parts Sabotaged 4 | . . . . . . . . . . . . . . . . . . . . . . 4 . . . . . . . . Parts Stolen . | . . . . . . . . . . . . . . . . . . . . . . . . . . . . . . . Parts Stripped . | . . . . . . . . . . . . . . . . . . . . . . . . . . . . . . . Power Chain Reactions 10 | . . . . . . . . . . . . . . . 1 . . . . 4 . 2 . . . . . 3 . . Alert | -11 -10 -10 -9 -9 -9 -8 -8 -8 -8 -8 -7 -7 -7 -7 -6 -6 -6 -6 -5 -5 -5 -5 -5 -5 -4 -4 -3 -3 -2 -2 ------- Run | Yrd Mat Min Mat Min Exi Min Mat Gar Mat Gar Fac Gar Fac Gar Fac Low Low Dat Pro Fac Gar Fac Upp Upp Fac DSF Res Tes Res Qua Peak Influence 1667 | 25 287 111 552 161 . 112 483 1165 608 462 310 1210 838 1331 833 . . . . 509 1320 1162 . . 314 222 110 1137 1667 813 Initial 782 | . 16 111 42 58 . . 35 217 567 . 242 184 634 637 698 . . . . 84 352 693 . . 314 222 110 19 639 782 Average 443 | 9 122 111 295 45 . 58 227 649 198 291 148 781 618 1016 627 . . . . 227 791 773 . . 314 198 44 384 1105 788 Maximum Alert Level 5 | . 1 . 2 . . . 2 4 2 2 1 4 3 4 3 . . . . 2 4 4 . . 1 1 . 4 5 3 Low Security (%) 32 | 100 75 100 27 100 . 100 42 . 63 34 68 3 . . . . . . . 42 . . . . . 66 100 54 . . Level 1 19 | . 24 . 52 . . . 52 21 18 22 31 5 . . . . . . . 52 31 5 . . 100 33 . 5 . . Level 2 24 | . . . 19 . . . 5 35 18 43 . 24 88 6 84 . . . . 5 19 24 . . . . . 8 16 . Level 3 17 | . . . . . . . . 38 . . . 50 11 58 15 . . . . . 20 60 . . . . . 24 33 100 Level 4 5 | . . . . . . . . 3 . . . 15 . 34 . . . . . . 29 10 . . . . . 6 41 . Level 5 . | . . . . . . . . . . . . . . . . . . . . . . . . . . . . . 8 . High Security . | . . . . . . . . . . . . . . . . . . . . . . . . . . . . . . . Max Security . | . . . . . . . . . . . . . . . . . . . . . . . . . . . . . . . Sterilizations 1 | . . . . . . . . . . . . . . . . . . . . . . . . . . 1 . . . . Squads Dispatched 79 | . 1 . 3 . . . 4 . 3 . 7 . 8 . 9 . . . . 7 . 18 . . 1 . . 11 6 1 Investigation 12 | . . . 2 . . . . . 1 . 3 . 1 . 1 . . . . 1 . 2 . . 1 . . . . . Extermination 26 | . . . . . . . . . . . 3 . 3 . 5 . . . . 5 . 6 . . . . . 3 1 . Reinforcement 23 | . 1 . 1 . . . 1 . 2 . 1 . 1 . 1 . . . . 1 . 4 . . . . . 6 3 1 Assault 12 | . . . . . . . . . . . . . . . 2 . . . . . . 6 . . . . . 2 2 . Garrison 6 | . . . . . . . 3 . . . . . 3 . . . . . . . . . . . . . . . . . Intercept . | . . . . . . . . . . . . . . . . . . . . . . . . . . . . . . . Searches Triggered . | . . . . . . . . . . . . . . . . . . . . . . . . . . . . . . . Data Miner Redirects 2 | . . . . . . . . . . . . . . . . . . . . . . 2 . . . . . . . . Construction Impeded 9 | . . . . . . . . . . . . . 1 . . . . . . 1 . 3 . . . . . 1 3 . Haulers Reinforced 1 | . . . . . . . . . . . . . . . . . . . . . . 1 . . . . . . . . Active Scanning Responses . | . . . . . . . . . . . . . . . . . . . . . . . . . . . . . . . Cargo Convoy Interrupts 1 | . . . . . . . . . . . . . . . 1 . . . . . . . . . . . . . . . Alert ID Control Effect 15 | . . . . . . . . . . . . . 12 3 . . . . . . . . . . . . . . . . Stealth | -11 -10 -10 -9 -9 -9 -8 -8 -8 -8 -8 -7 -7 -7 -7 -6 -6 -6 -6 -5 -5 -5 -5 -5 -5 -4 -4 -3 -3 -2 -2 --------- Run | Yrd Mat Min Mat Min Exi Min Mat Gar Mat Gar Fac Gar Fac Gar Fac Low Low Dat Pro Fac Gar Fac Upp Upp Fac DSF Res Tes Res Qua Distress Signals 25 | . 2 . 3 . . 1 4 . 1 . . . 1 . . . . . . 1 . 3 . . . . . 4 4 1 Communications Jammed 48 | . . . . . . . . . . . . . . . 47 . . . . 1 . . . . . . . . . . Distress Signals 47 | . . . . . . . . . . . . . . . 46 . . . . 1 . . . . . . . . . . Times Spotted 662 | . 15 . 33 4 . 8 31 25 28 17 27 33 22 21 39 15 19 . 16 49 33 87 12 . . 15 1 53 45 14 Peak Tracking Total 14 | . 4 . 4 4 . 2 4 6 3 5 3 8 4 6 6 8 5 . 5 7 6 11 5 . . 4 1 6 14 9 Tactical Retreats 27 | . 1 . . . . . 3 . 2 . 1 2 . 1 1 . . . . 4 3 4 . . . . . 4 1 . Traps | -11 -10 -10 -9 -9 -9 -8 -8 -8 -8 -8 -7 -7 -7 -7 -6 -6 -6 -6 -5 -5 -5 -5 -5 -5 -4 -4 -3 -3 -2 -2 ------- Run | Yrd Mat Min Mat Min Exi Min Mat Gar Mat Gar Fac Gar Fac Gar Fac Low Low Dat Pro Fac Gar Fac Upp Upp Fac DSF Res Tes Res Qua Traps Triggered 16 | . 1 . . . . . 1 . 1 2 . 1 . . 1 . . . . 1 . 1 . . . . . 7 . . Indirectly . | . . . . . . . . . . . . . . . . . . . . . . . . . . . . . . . Trap Hack Attempts . | . . . . . . . . . . . . . . . . . . . . . . . . . . . . . . . Triggered . | . . . . . . . . . . . . . . . . . . . . . . . . . . . . . . . Disarmed . | . . . . . . . . . . . . . . . . . . . . . . . . . . . . . . . Reprogrammed . | . . . . . . . . . . . . . . . . . . . . . . . . . . . . . . . Reused . | . . . . . . . . . . . . . . . . . . . . . . . . . . . . . . . Traps Extracted . | . . . . . . . . . . . . . . . . . . . . . . . . . . . . . . . Installed . | . . . . . . . . . . . . . . . . . . . . . . . . . . . . . . . Triggered 6 | . . . . . . . . . . . . . . . . . . . 2 . . . . 4 . . . . . . Machines | -11 -10 -10 -9 -9 -9 -8 -8 -8 -8 -8 -7 -7 -7 -7 -6 -6 -6 -6 -5 -5 -5 -5 -5 -5 -4 -4 -3 -3 -2 -2 ---------- Run | Yrd Mat Min Mat Min Exi Min Mat Gar Mat Gar Fac Gar Fac Gar Fac Low Low Dat Pro Fac Gar Fac Upp Upp Fac DSF Res Tes Res Qua Machines Disabled 70 | . . . 1 . . 1 . 7 1 2 2 3 5 7 5 2 1 . . 10 4 6 . . . . . 10 3 . Max in Single Turn 5 | . . . . . . 1 . 2 1 1 . 1 . 1 1 1 1 . . 5 1 1 . . . . . 1 . . Garrison Access 1 | . . . . . . . . . . . . . . . . . . . . . . 1 . . . . . . . . Garrison Relay 16 | . . . . . . . . 5 . 2 . 3 . 3 . . . . . . 3 . . . . . . . . . Phase Generator 1 | . . . . . . . . 1 . . . . . . . . . . . . . . . . . . . . . . Machines Repaired . | . . . . . . . . . . . . . . . . . . . . . . . . . . . . . . . Machines Dismantled . | . . . . . . . . . . . . . . . . . . . . . . . . . . . . . . . Machines Sabotaged . | . . . . . . . . . . . . . . . . . . . . . . . . . . . . . . . Overloaded Fab Kills . | . . . . . . . . . . . . . . . . . . . . . . . . . . . . . . . Hacking | -11 -10 -10 -9 -9 -9 -8 -8 -8 -8 -8 -7 -7 -7 -7 -6 -6 -6 -6 -5 -5 -5 -5 -5 -5 -4 -4 -3 -3 -2 -2 --------- Run | Yrd Mat Min Mat Min Exi Min Mat Gar Mat Gar Fac Gar Fac Gar Fac Low Low Dat Pro Fac Gar Fac Upp Upp Fac DSF Res Tes Res Qua Machines Accessed 103 | . 1 . 12 1 2 . 4 2 6 1 14 2 6 3 8 . 2 4 . 8 2 8 1 . 2 . 1 5 2 6 Terminals 63 | . 1 . 10 . . . 3 2 4 1 8 2 1 3 5 . . . . 4 2 4 1 . 1 . 1 4 1 5 Fabricators 8 | . . . . . . . . . . . 2 . 2 . . . . . . 2 . 1 . . 1 . . . . . Repair Stations 5 | . . . . . . . . . . . . . 1 . 1 . . . . . . 1 . . . . . . 1 1 Recycling Units 7 | . . . 1 . . . . . 1 . 3 . . . 1 . . . . 1 . . . . . . . . . . Scanalyzers 6 | . . . 1 . . . . . . . . . 1 . 1 . . . . . . 2 . . . . . 1 . . Garrison Access 5 | . . . . . . . 1 . 1 . 1 . 1 . . . . . . 1 . . . . . . . . . . Total Hacks 328 | . 4 . 44 1 3 . 9 4 16 3 62 3 18 7 20 . 4 28 . 16 4 33 2 . 7 . 1 26 4 9 Successful 171 | . 3 . 19 1 3 . 4 1 10 2 27 1 12 . 8 . 4 28 . 8 1 15 2 . 2 . 1 16 1 2 Failed 155 | . 1 . 24 . . . 5 3 6 1 34 2 6 7 12 . . . . 8 3 18 . . 5 . . 10 3 7 Catastrophic 36 | . . . 2 . . . . . 1 . 10 . 1 1 4 . . . . 4 1 5 . . 1 . . 3 1 2 Database Lockouts 2 | . . . 1 . . . . . . . 1 . . . . . . . . . . . . . . . . . . . Manual 105 | . 4 . 25 . 1 . 7 . 11 1 33 . 2 . 11 . . . . 1 . 6 . . . . . . 1 2 Terminals 177 | . 4 . 36 . . . 6 4 12 3 39 3 3 7 10 . . . . 8 4 15 2 . 3 . 1 9 1 7 Fabricators 29 | . . . . . . . . . . . 10 . 7 . . . . . . 5 . 3 . . 4 . . . . . Repair Stations 14 | . . . . . . . . . . . . . 3 . 4 . . . . . . 2 . . . . . . 3 2 Recycling Units 22 | . . . 4 . . . . . 2 . 12 . . . 2 . . . . 2 . . . . . . . . . . Scanalyzers 42 | . . . 4 . . . . . . . . . 4 . 4 . . . . . . 13 . . . . . 17 . . Garrison Access 8 | . . . . . . . 3 . 2 . 1 . 1 . . . . . . 1 . . . . . . . . . . Terminal Hacks 85 | . 3 . 10 1 3 . . 1 4 1 9 1 1 . 1 . 4 28 . 4 1 4 2 . 1 . 1 4 . 1 Record 19 | . . . . . 2 . . . . . . . . . . . 3 11 . . . . 2 . . . . . . 1 Part Schematic 9 | . . . . . . . . . . . . . . . . . . 9 . . . . . . . . . . . . Robot Schematic 7 | . . . . . . . . . . . 2 . . . . . . 5 . . . . . . . . . . . . Robot Analysis 4 | . 2 . 2 . . . . . . . . . . . . . . . . . . . . . . . . . . . Prototype ID Bank 11 | . 1 . . . . . . . 1 . 3 . 1 . . . . 3 . 1 . . . . . . . 1 . . Open Door 2 | . . . . 1 . . . . . . . . . . . . 1 . . . . . . . . . . . . . Open DSF 1 | . . . . . . . . . . . . . . . . . . . . . . . . . 1 . . . . . Branch Access Points 1 | . . . . . . . . . . . . . . . . . . . . . . 1 . . . . . . . . Emergency Access Points 2 | . . . . . . . . . . 1 . 1 . . . . . . . . . . . . . . . . . . Terminal Index 4 | . . . 1 . . . . . 1 . 1 . . . . . . . . 1 . . . . . . . . . . Alert Level 1 | . . . 1 . . . . . . . . . . . . . . . . . . . . . . . . . . . Unreport Threat 9 | . . . 2 . . . . . 2 . 2 . . . 1 . . . . 1 . . . . . . 1 . . . Locate Traps 4 | . . . 1 . . . . . . . . . . . . . . . . 1 . 1 . . . . . 1 . . Security Status 1 | . . . 1 . . . . . . . . . . . . . . . . . . . . . . . . . . . Recall Reinforcements 1 | . . . . . . . . . . . . . . . . . . . . . . 1 . . . . . . . . Hauler Manifests 2 | . . . 2 . . . . . . . . . . . . . . . . . . . . . . . . . . . Zone Layout 2 | . . . . . . . . . . . 1 . . . . . . . . . . 1 . . . . . . . . Garrison Registry 2 | . . . . . . . . 1 . . . . . . . . . . . . 1 . . . . . . . . . Derelict Proto ID Bank 1 | . . . . . 1 . . . . . . . . . . . . . . . . . . . . . . . . . Protovariant Controls 2 | . . . . . . . . . . . . . . . . . . . . . . . . . . . . 2 . . Fabricator Hacks 18 | . . . . . . . . . . . 7 . 6 . . . . . . 3 . 1 . . 1 . . . . . Load Schematic 10 | . . . . . . . . . . . 4 . 3 . . . . . . 1 . 1 . . 1 . . . . . Build 8 | . . . . . . . . . . . 3 . 3 . . . . . . 2 . . . . . . . . . . Repair Station Hacks 7 | . . . . . . . . . . . . . 2 . 2 . . . . . . 1 . . . . . . 1 1 Scan Component 5 | . . . . . . . . . . . . . 1 . 1 . . . . . . 1 . . . . . . 1 1 Repair 2 | . . . . . . . . . . . . . 1 . 1 . . . . . . . . . . . . . . . Recycling Unit Hacks 3 | . . . 1 . . . . . . . 2 . . . . . . . . . . . . . . . . . . . Retrieve Components 3 | . . . 1 . . . . . . . 2 . . . . . . . . . . . . . . . . . . . Scanalyzer 29 | . . . 4 . . . . . . . . . 1 . 3 . . . . . . 9 . . . . . 12 . . Insert Component 12 | . . . 1 . . . . . . . . . 1 . 1 . . . . . . 4 . . . . . 5 . . Analyze 17 | . . . 3 . . . . . . . . . . . 2 . . . . . . 5 . . . . . 7 . . Garrison Access Hacks 5 | . . . . . . . 1 . 1 . 1 . 1 . . . . . . 1 . . . . . . . . . . Unlock Access 5 | . . . . . . . 1 . 1 . 1 . 1 . . . . . . 1 . . . . . . . . . . Unauthorized Hacks 24 | . . . 4 . . . 3 . 5 1 8 . 1 . 2 . . . . . . . . . . . . . . . Terminals 16 | . . . 2 . . . 2 . 3 1 5 . 1 . 2 . . . . . . . . . . . . . . . Assimilate 1 | . . . . . . . 1 . . . . . . . . . . . . . . . . . . . . . . . Botnet 12 | . . . 2 . . . 1 . 1 1 5 . 1 . 1 . . . . . . . . . . . . . . . Operators 3 | . . . . . . . . . 2 . . . . . 1 . . . . . . . . . . . . . . . Fabricators 1 | . . . . . . . . . . . 1 . . . . . . . . . . . . . . . . . . . Recompile 1 | . . . . . . . . . . . 1 . . . . . . . . . . . . . . . . . . . Repair Stations . | . . . . . . . . . . . . . . . . . . . . . . . . . . . . . . . Recycling Units 5 | . . . 2 . . . . . 1 . 2 . . . . . . . . . . . . . . . . . . . Reject 1 | . . . 1 . . . . . . . . . . . . . . . . . . . . . . . . . . . Mask 4 | . . . 1 . . . . . 1 . 2 . . . . . . . . . . . . . . . . . . . Scanalyzers . | . . . . . . . . . . . . . . . . . . . . . . . . . . . . . . . Garrison Access 2 | . . . . . . . 1 . 1 . . . . . . . . . . . . . . . . . . . . . Restock 2 | . . . . . . . 1 . 1 . . . . . . . . . . . . . . . . . . . . . Data Cores Recovered 3 | . . . 1 . . . . . . . . . . . 2 . . . . . . . . . . . . . . . Used 1 | . . . . . . . . . . . . . . . 1 . . . . . . . . . . . . . . . Hacking Detections 81 | . 1 . 12 . . . 3 1 5 1 12 2 4 3 7 . . . . 7 2 8 . . 1 . . 5 2 5 Full Trace Events 10 | . . . 1 . . . . 1 . . 1 . 1 1 1 . . . . 1 1 1 . . 1 . . . . . Feedback Events 1 | . . . . . . . . . . . . . 1 . . . . . . . . . . . . . . . . . Corruption 1 | . . . . . . . . . . . . . 1 . . . . . . . . . . . . . . . . . Feedback Blocked . | . . . . . . . . . . . . . . . . . . . . . . . . . . . . . . . Robot Schematics Acquired 8 | . . . . . . . . . . . 2 . . . . . . 5 . . . . . . . . . 1 . . Robots Built 12 | . . . . . . . . . . . 6 . 4 . . . . . . 2 . . . . . . . . . . Authchips 5 | . . . . . . . . . . . 3 . 2 . . . . . . . . . . . . . . . . . Time 440 | . . . . . . . . . . . 222 . 134 . . . . . . 84 . . . . . . . . . . Total Robot Build Rating 52 | . . . . . . . . . . . 24 . 16 . . . . . . 12 . . . . . . . . . . Part Schematics Acquired 26 | . . . 1 . . . . . . . . . . . 1 . . 9 . . . 4 . . . . . 11 . . Parts Built 4 | . . . . . . . . . . . . . 2 . . . . . . 2 . . . . . . . . . . Authchips . | . . . . . . . . . . . . . . . . . . . . . . . . . . . . . . . Time 234 | . . . . . . . . . . . . . 106 . . . . . . 128 . . . . . . . . . . Total Part Build Rating 28 | . . . . . . . . . . . . . 12 . . . . . . 16 . . . . . . . . . . Parts Repaired 2 | . . . . . . . . . . . . . 1 . 1 . . . . . . . . . . . . . . . Time 112 | . . . . . . . . . . . . . 56 . 56 . . . . . . . . . . . . . . . Parts Recycled . | . . . . . . . . . . . . . . . . . . . . . . . . . . . . . . . Recycled Matter . | . . . . . . . . . . . . . . . . . . . . . . . . . . . . . . . Retrieved Matter . | . . . . . . . . . . . . . . . . . . . . . . . . . . . . . . . Retrieved Components 19 | . . . 9 . . . . . . . 10 . . . . . . . . . . . . . . . . . . . Parts Scanalyzed 11 | . . . 1 . . . . . . . . . 1 . 1 . . . . . . 4 . . . . . 4 . . Part Schematics Acquired 9 | . . . 1 . . . . . . . . . . . 1 . . . . . . 4 . . . . . 3 . . Parts Damaged 1 | . . . . . . . . . . . . . . . . . . . . . . . . . . . . 1 . . Bothacking | -11 -10 -10 -9 -9 -9 -8 -8 -8 -8 -8 -7 -7 -7 -7 -6 -6 -6 -6 -5 -5 -5 -5 -5 -5 -4 -4 -3 -3 -2 -2 ------------ Run | Yrd Mat Min Mat Min Exi Min Mat Gar Mat Gar Fac Gar Fac Gar Fac Low Low Dat Pro Fac Gar Fac Upp Upp Fac DSF Res Tes Res Qua Used RIF Installer 7 | . . . . . . . . 2 . 2 . 1 . 1 . . . . . . 1 . . . . . . . . . Hotswap 1 | . . . . . . . . . . . . . . 1 . . . . . . . . . . . . . . . . Threat Obfuscator 1 | . . . . . . . . . . . . . . . . . . . . . 1 . . . . . . . . . Robot Detection 1 | . . . . . . . . 1 . . . . . . . . . . . . . . . . . . . . . . Patrol Navigation 1 | . . . . . . . . . . 1 . . . . . . . . . . . . . . . . . . . . Alert ID Control 1 | . . . . . . . . . . . . 1 . . . . . . . . . . . . . . . . . . Autooverride 1 | . . . . . . . . . . 1 . . . . . . . . . . . . . . . . . . . . Robots Hacked 52 | . . . . . . . . 1 12 3 9 . 10 3 4 1 . . . 4 . 5 . . . . . . . . Non-combat 30 | . . . . . . . . . 7 . 6 . 3 . 4 1 . . . 4 . 5 . . . . . . . . Combat 22 | . . . . . . . . 1 5 3 3 . 7 3 . . . . . . . . . . . . . . . . Autooverrided 4 | . . . . . . . . . . 1 2 . 1 . . . . . . . . . . . . . . . . . Robot Hacks Applied 71 | . . . . . . . . 1 18 2 12 . 14 3 5 1 . . . 5 . 10 . . . . . . . . parse_system 7 | . . . . . . . . . 3 . . . 2 . . 1 . . . 1 . . . . . . . . . . no_distress 1 | . . . . . . . . . 1 . . . . . . . . . . . . . . . . . . . . . map_walls 1 | . . . . . . . . . . . . . 1 . . . . . . . . . . . . . . . . . find_fabricator 1 | . . . . . . . . . . . . . 1 . . . . . . . . . . . . . . . . . find_dsf 1 | . . . . . . . . . . . . . 1 . . . . . . . . . . . . . . . . . drop_inventory 6 | . . . . . . . . . 1 . 1 . 2 . 1 . . . . 1 . . . . . . . . . . locate_stockpiles 1 | . . . . . . . . . . . 1 . . . . . . . . . . . . . . . . . . . find_station 1 | . . . . . . . . . . . . . . . 1 . . . . . . . . . . . . . . . release_backups 1 | . . . . . . . . . . . 1 . . . . . . . . . . . . . . . . . . . check_alert 1 | . . . . . . . . . . . 1 . . . . . . . . . . . . . . . . . . . purge_threat 6 | . . . . . . . . . 2 . 1 . . . . . . . . . . 3 . . . . . . . . locate_traps 1 | . . . . . . . . . 1 . . . . . . . . . . . . . . . . . . . . . disarm_traps 1 | . . . . . . . . . . . 1 . . . . . . . . . . . . . . . . . . . summon_haulers 2 | . . . . . . . . . . . . . . . . . . . . 1 . 1 . . . . . . . . recall_investigation 1 | . . . . . . . . . . . . . . . . . . . . . . 1 . . . . . . . . clear_recycling 2 | . . . . . . . . . . . 1 . . . . . . . . . . 1 . . . . . . . . map_route 3 | . . . . . . . . . 1 . 1 . . . . . . . . 1 . . . . . . . . . . mark_security 2 | . . . . . . . . . . . 1 . . . . . . . . . . 1 . . . . . . . . relay_feed 2 | . . . . . . . . . 1 . 1 . . . . . . . . . . . . . . . . . . . redirect_shields 1 | . . . . . . . . . . . . . . . 1 . . . . . . . . . . . . . . . find_shortcuts 1 | . . . . . . . . . 1 . . . . . . . . . . . . . . . . . . . . . find_garrison 1 | . . . . . . . . . . . . . 1 . . . . . . . . . . . . . . . . . link_fov 1 | . . . . . . . . . 1 . . . . . . . . . . . . . . . . . . . . . focus_fire 1 | . . . . . . . . . . . . . 1 . . . . . . . . . . . . . . . . . scatter_targeting 2 | . . . . . . . . . . . . . 2 . . . . . . . . . . . . . . . . . amplify_resonance 2 | . . . . . . . . . . . . . . 1 . . . . . . . 1 . . . . . . . . disable_weapons 1 | . . . . . . . . . . . . . 1 . . . . . . . . . . . . . . . . . go_dormant 1 | . . . . . . . . . . 1 . . . . . . . . . . . . . . . . . . . . formatsys_low 7 | . . . . . . . . . 1 . 1 . . . 2 . . . . 1 . 2 . . . . . . . . formatsys_high 11 | . . . . . . . . 1 5 1 1 . 2 1 . . . . . . . . . . . . . . . . formatsys_deep 1 | . . . . . . . . . . . . . . 1 . . . . . . . . . . . . . . . . Relay Couplers Released 78 | . . . . . . . 4 22 3 7 . 13 . 17 . . . . . . 10 2 . . . . . . . . Machine Destruction 67 | . . . . . . . . 22 . 7 . 13 . 13 . . . . . . 10 2 . . . . . . . . Programmers 11 | . . . . . . . 4 . 3 . . . . 4 . . . . . . . . . . . . . . . . Attached 22 | . . . . . . . . 2 6 1 3 . 4 3 . . . . . 1 . 2 . . . . . . . . Fabnet Peak Effective % . | . . . . . . . . . . . . . . . . . . . . . . . . . . . . . . . Robots Rewired 6 | . . . . . 2 . . . . . . . . . . 2 2 . . . . . . . . . . . . . Allies Hacked 2 | . . . . . . . . . . . 1 . 1 . . . . . . . . . . . . . . . . . Hacks Repelled . | . . . . . . . . . . . . . . . . . . . . . . . . . . . . . . . Allies | -11 -10 -10 -9 -9 -9 -8 -8 -8 -8 -8 -7 -7 -7 -7 -6 -6 -6 -6 -5 -5 -5 -5 -5 -5 -4 -4 -3 -3 -2 -2 -------- Run | Yrd Mat Min Mat Min Exi Min Mat Gar Mat Gar Fac Gar Fac Gar Fac Low Low Dat Pro Fac Gar Fac Upp Upp Fac DSF Res Tes Res Qua Total Allies 67 | . . 3 . 1 2 . 1 3 6 2 10 . 7 5 14 2 2 . . 3 . 2 1 . . . . 3 . . Largest Group 13 | . . 3 3 2 2 2 1 2 7 9 13 8 13 10 7 3 2 1 1 2 . 1 1 1 1 1 . 2 2 . Highest-Rated Group 378 | . . 40 40 47 29 29 26 56 121 152 313 184 333 208 181 77 64 26 26 98 . 23 24 24 24 24 . 378 353 . Highest-Rated Ally 251 | . . 16 16 31 21 21 26 31 29 29 32 32 32 32 32 32 32 26 26 49 . 23 24 24 24 24 . 251 226 . Total Orders 89 | . . . 2 . . . 1 . 18 5 11 9 2 13 10 7 . . . 2 . 2 . . . . . 4 3 . STAY 41 | . . . 1 . . . 1 . 11 3 4 3 . 4 6 3 . . . 1 . . . . . . . 2 2 . FOLLOW 21 | . . . 1 . . . . . 5 1 4 1 . 2 2 2 . . . . . . . . . . . 2 1 . AID 27 | . . . . . . . . . 2 1 3 5 2 7 2 2 . . . 1 . 2 . . . . . . . . Ally Attacks 514 | . . . 78 . . 15 . 7 17 3 69 7 89 98 35 . 13 . 1 5 . . . . . . . 49 28 . Total Damage 22197 | . . . 710 . . 194 . 56 171 41 2347 297 2655 1750 940 . 334 . 35 168 . . . . . . . 8303 4196 . Kills 163 | . . . 14 . . . . . 2 . 18 2 24 16 8 . 5 . 1 . . . . . . . . 40 33 . Allies Corrupted 3 | . . . . . . . . . . . 1 . . . . . . . . 2 . . . . . . . . . . Allies Melted . | . . . . . . . . . . . . . . . . . . . . . . . . . . . . . . . Field Lobotomies 4 | . . . . . . . . . . . . . . . . . . . . . . . 1 . . . . 3 . . Intel | -11 -10 -10 -9 -9 -9 -8 -8 -8 -8 -8 -7 -7 -7 -7 -6 -6 -6 -6 -5 -5 -5 -5 -5 -5 -4 -4 -3 -3 -2 -2 ------- Run | Yrd Mat Min Mat Min Exi Min Mat Gar Mat Gar Fac Gar Fac Gar Fac Low Low Dat Pro Fac Gar Fac Upp Upp Fac DSF Res Tes Res Qua Robot Analysis Total 4 | . 2 . 2 . . . . . . . . . . . . . . . . . . . . . . . . . . . Derelict Logs Recovered 7 | . . 1 . 2 . . . . . . . . . . . 1 . . 2 . . . 1 . . . . . . . Drone Launches . | . . . . . . . . . . . . . . . . . . . . . . . . . . . . . . . Drone Recoveries . | . . . . . . . . . . . . . . . . . . . . . . . . . . . . . . . Exploration | -11 -10 -10 -9 -9 -9 -8 -8 -8 -8 -8 -7 -7 -7 -7 -6 -6 -6 -6 -5 -5 -5 -5 -5 -5 -4 -4 -3 -3 -2 -2 ------------- Run | Yrd Mat Min Mat Min Exi Min Mat Gar Mat Gar Fac Gar Fac Gar Fac Low Low Dat Pro Fac Gar Fac Upp Upp Fac DSF Res Tes Res Qua Turns Passed 34158 | 164 326 236 1694 1187 1011 663 859 1249 2217 1065 2483 1419 1071 933 3158 1270 838 134 983 3287 1142 3016 585 45 132 301 162 1824 522 182 Spaces Moved 16111 | 70 129 147 805 488 416 243 317 589 949 534 1193 679 476 473 1573 551 463 84 583 1262 491 1259 252 15 40 121 119 1145 292 353 Core 197 | 16 . . . . . . . . . . . . . . . . . . . 1 . . . . . . . . 60 120 Treads 13736 | 54 129 147 805 488 416 243 317 589 949 534 1193 679 476 473 1573 551 463 84 583 919 491 1259 252 15 40 14 . . . . Legs 1554 | . . . . . . . . . . . . . . . . . . . . . . . . . . 107 119 1145 183 . Wheels 344 | . . . . . . . . . . . . . . . . . . . . 342 . . . . . . . . 2 . Hover . | . . . . . . . . . . . . . . . . . . . . . . . . . . . . . . . Flight 280 | . . . . . . . . . . . . . . . . . . . . . . . . . . . . . 47 233 Fastest Speed 37 | 50 160 160 160 240 240 240 160 160 160 160 165 165 165 165 158 160 160 160 160 160 160 160 160 320 320 117 115 114 37 40 Average Speed 170 | 134 160 160 175 240 240 240 160 162 187 163 165 165 165 165 161 160 160 160 160 213 172 185 202 320 320 146 116 117 117 43 Slowest Speed 2150 | 160 160 160 240 240 240 240 160 163 240 320 165 165 165 165 165 160 160 160 160 2150 240 320 320 320 320 320 118 184 330 50 Overloaded Moves 3 | . . . . . . . . . . . . . . . . . . . . . . . . . . . . . 3 . Propulsion Burnouts . | . . . . . . . . . . . . . . . . . . . . . . . . . . . . . . . Robots Hopped 5 | . . . . . . . . . . . . . . . . . . . . . . . . . . . . . 3 2 Cave-ins Triggered 1 | . . . . . . . . . . . . . . . . . . . . . . . . . . . . 1 . . Exploration Rate (%) 46 | 4 43 39 78 89 89 55 34 88 38 63 31 65 17 59 25 64 62 69 79 33 35 34 50 6 1 67 3 76 9 39 Regions Visited 30 Branch Regions 12 Pre-discovered Areas 3 | . . . . . 1 . . . . . . . . . . . . 1 1 . . . . . . . . . . . Known Exits Taken 12 | . . . . . . 1 1 . 1 . 1 . 1 . 1 . . . . 1 . 1 1 1 1 . . 1 . . Unknown Exits Taken 12 | 1 1 1 1 1 1 . . . . . . . . . . 1 1 1 1 . . . . . . . 1 . 1 . Scrap Searched 12 | . . 1 . 1 . 1 . . . . . . . . . 1 3 . 4 . . . 1 . . . . . . . Spaces Dug 21 | . . . . . . . . . . . 2 . . . . . . . . . . 5 14 . . . . . . . Terrain Destroyed 1051 | . . . . 8 . . 6 95 5 . 8 20 2 10 34 87 162 . 217 93 10 136 78 . . 3 . 67 10 . Melee . | . . . . . . . . . . . . . . . . . . . . . . . . . . . . . . . Projectile 267 | . . . . . . . 6 . 5 . 8 1 2 10 33 9 8 . . 47 8 79 18 . . 3 . 20 10 . AOE 780 | . . . . 8 . . . 94 . . . 19 . . 1 78 154 . 217 45 . 57 60 . . . . 47 . . Terrain Rammed . | . . . . . . . . . . . . . . . . . . . . . . . . . . . . . . . Walls Destroyed . | . . . . . . . . . . . . . . . . . . . . . . . . . . . . . . . Machines Disabled . | . . . . . . . . . . . . . . . . . . . . . . . . . . . . . . . Actions | -11 -10 -10 -9 -9 -9 -8 -8 -8 -8 -8 -7 -7 -7 -7 -6 -6 -6 -6 -5 -5 -5 -5 -5 -5 -4 -4 -3 -3 -2 -2 --------- Run | Yrd Mat Min Mat Min Exi Min Mat Gar Mat Gar Fac Gar Fac Gar Fac Low Low Dat Pro Fac Gar Fac Upp Upp Fac DSF Res Tes Res Qua Total 20595 | 104 188 147 959 501 431 282 509 751 1347 670 1622 847 737 569 2007 880 499 85 611 1636 644 1663 294 14 44 202 132 1454 389 377 Wait 2114 | . 9 . 13 . . 18 77 36 322 41 327 52 204 35 292 285 . . 3 174 27 116 5 . . 5 . 47 20 6 Move 16075 | 69 128 146 804 487 415 242 316 588 948 533 1193 678 476 472 1572 550 462 83 582 1262 490 1258 251 14 39 120 118 1144 286 349 Hop 4 | . . . . . . . . . . . . . . . . . . . . . . . . . . . . . 2 2 Pick Up 252 | 7 5 . 24 3 4 1 10 14 10 15 11 11 4 4 9 2 2 . 3 23 13 23 4 . 1 16 2 24 6 1 Fast Attach 175 | 7 1 . 5 2 1 . 4 2 4 4 2 1 4 3 4 . 1 . . 20 4 17 3 . 1 17 2 51 7 8 Attach 103 | . 2 . 2 . . . 5 10 3 . 6 3 2 2 4 . 1 . 3 10 3 26 1 . . 4 2 9 5 . Detach 7 | . . . 1 . . . . . . . . . . . . . . . 1 . . 4 . . . . . 1 . . Swap 217 | 1 1 1 15 3 1 . 8 13 9 12 12 12 8 10 14 5 2 . . 24 6 31 2 . 3 4 2 17 1 . Drop 244 | . 5 . 31 3 5 1 13 6 7 21 7 7 8 7 7 1 . 2 . 17 16 16 . . . 5 2 51 4 2 Fire 1300 | 20 37 . 60 1 . 17 72 80 19 44 61 83 28 32 97 29 28 . 19 102 85 160 28 . . 31 4 109 54 . Melee 21 | . . . . . . . . 1 20 . . . . . . . . . . . . . . . . . . . . . Ram 10 | . . . . . . . . . . . . . . . . . . . . 1 . . . . . . . . . 9 Kick 5 | . . . . . . . . . . . . . . . . . . . . . . . . . . . . 1 4 . Crush 37 | . . . 4 2 . 3 4 . . . 3 . . . 7 . . . . 2 . 12 . . . . . . . . Escape Stasis 2 | . . . . . . . . . . . . . . 2 . . . . . . . . . . . . . . . . Rewire 29 | . . . . . 5 . . 1 5 . . . 3 2 1 8 3 . . 1 . . . . . . . . . . Trap . | . . . . . . . . . . . . . . . . . . . . . . . . . . . . . . . Miscellaneous . | . . . . . . . . . . . . . . . . . . . . . . . . . . . . . . . Route ------- -11/Scrapyard -10/Materials -10/Mines -9/Materials (discovered 5 exits: *Mat x3 / *Min / [*Sto]) -9/Mines (discovered 4 exits: *Mat x2 / *Exi / [*Zio]) -9/Exiles (discovered 2 exits: [*Min x2]) -8/Mines (discovered 2 exits: *Mat x2) -8/Materials (discovered 3 exits: Fac x2 / Gar) -8/Garrison (discovered 3 exits: *Mat x3) -8/Materials (discovered 2 exits: *Fac / Gar) -8/Garrison -7/Factory (discovered 3 exits: *Fac x2 / Gar) -7/Garrison (discovered 3 exits: *Fac x3) -7/Factory -7/Garrison -6/Factory (discovered 2 exits: *Low x2) -6/Lower Caves -6/Lower Caves -6/Data Miner -5/Proximity Caves -5/Factory (discovered 3 exits: *Fac x2 / Gar) -5/Garrison (discovered 3 exits: *Fac x3) -5/Factory (discovered 2 exits: *Upp x2) -5/Upper Caves -5/Upper Caves -4/Factory -4/DSF -3/Research (discovered 2 exits: Res / *Tes) -3/Testing -2/Research -2/Quarantine History --------- Turn | Location | Event 8 | -11/Scrapyard | Discovered new exit (range 16) 165 | -11/Scrapyard | Entered Materials 316 | -10/Materials | Build established: Mutant 357 | -10/Materials | Core integrity fell below 50% 435 | -10/Materials | Discovered new exit (range 8) 491 | -10/Materials | Entered Mines 607 | -10/Mines | Learned location of 1 exit from Materials 669 | -10/Mines | Discovered new exit (range 8) 703 | -10/Mines | Assisted by bots powering up and referring to "LRC-V3" 727 | -10/Mines | Entered Materials 727 | -9/Materials | Accompanied by 3 allies 727 | -9/Materials | Evolved 2 slots: Utility x1, Weapon x1 728 | -9/Materials | Identified exit to Materials 1030 | -9/Materials | Discovered exit to Materials (range 13) 1058 | -9/Materials | Central database locked down 1093 | -9/Materials | Build established: Tank 1375 | -9/Materials | Discovered new exit (range 8) 1540 | -9/Materials | Discovered new exit (range 5) 1728 | -9/Materials | Build established: Scavenger-Tank 2035 | -9/Materials | Discovered exit to Materials (range 16) 2133 | -9/Materials | Build established: Tank 2421 | -9/Materials | Entered Mines 2421 | -9/Mines | Accompanied by 1 ally 2614 | -9/Mines | Received a Rocket Launcher from a helpful Derelict 2747 | -9/Mines | Learned location of 2 exits from Materials 2848 | -9/Mines | Discovered exit to Materials (range 11) 2861 | -9/Mines | A Derelict revealed a hidden shortcut to a safe place 2921 | -9/Mines | Received a Mining Laser from a helpful Derelict 3315 | -9/Mines | Found the Drone Emporium 3318 | -9/Mines | Learned Materials non-interactive machine intel 3326 | -9/Mines | Found Prototype Device 3326 | -9/Mines | Identified Sensor Drone Bay 3498 | -9/Mines | Discovered exit to Materials (range 5) 3596 | -9/Mines | Deemed a non-threat by the Exiles lab entrance 3598 | -9/Mines | Discovered new exit (range 5) 3608 | -9/Mines | Entered Exiles 3608 | -9/Exiles | Found Exiles lab destroyed 3642 | -9/Exiles | Discovered new exit (range 15) 3932 | -9/Exiles | Opened EX-Vault 3950 | -9/Exiles | Found Field Lobotomy Kit 4080 | -9/Exiles | Learned location of Zion (-7) 4595 | -9/Exiles | Discovered new exit (range 10) 4619 | -9/Exiles | Entered Mines 4619 | -8/Mines | Accompanied by 2 allies 4723 | -8/Mines | Discovered exit to Materials (range 9) 5093 | -8/Mines | Discovered exit to Materials (range 14) 5282 | -8/Mines | Entered Materials 5282 | -8/Materials | Evolved 2 slots: Propulsion x1, Utility x1 5283 | -8/Materials | Identified exit to Factory 5284 | -8/Materials | Loaded intel: 42 non-interactive machine locations 5629 | -8/Materials | Build established: Scavenger-Tank 5924 | -8/Materials | Garrison activated, responded to threat 5974 | -8/Materials | Build established: Tank 6015 | -8/Materials | Identified exit to Garrison 6102 | -8/Materials | Lost 3 parts (1p2u) 6141 | -8/Materials | Entered Garrison 6169 | -8/Garrison | Triggered checkpoint 6316 | -8/Garrison | Rescued a captive Derelict 6317 | -8/Garrison | Rescued a captive Derelict 6364 | -8/Garrison | Build established: Scavenger-Tank 6434 | -8/Garrison | Destroyed 7 combat bots 6437 | -8/Garrison | Lost 3 parts (1p1n1u) 6439 | -8/Garrison | Triggered checkpoint 6501 | -8/Garrison | Triggered checkpoint 6547 | -8/Garrison | Garrison Relay disabled 6576 | -8/Garrison | Discovered new exit (range 66) 6576 | -8/Garrison | Discovered new exit (range 48) 6576 | -8/Garrison | Discovered new exit (range 37) 6662 | -8/Garrison | Installed Relay Interface Framework 6698 | -8/Garrison | Build established: Scavenger-Gunner 6726 | -8/Garrison | Expanded RIF knowledge: Robot Detection 6856 | -8/Garrison | Phase Generator disabled 6972 | -8/Garrison | Garrison Relay disabled 7075 | -8/Garrison | Garrison Relay disabled 7145 | -8/Garrison | Triggered checkpoint 7248 | -8/Garrison | Garrison Relay disabled 7321 | -8/Garrison | Garrison Relay disabled 7390 | -8/Garrison | Entered Materials 7390 | -8/Materials | Accompanied by 1 ally 7779 | -8/Materials | Build established: Bothacker-Mutant 8034 | -8/Materials | Core integrity fell below 50% 8711 | -8/Materials | Build established: Commander-Mutant 9249 | -8/Materials | Build established: Commander-Tank 9429 | -8/Materials | Identified exit to Garrison 9555 | -8/Materials | Discovered exit to Factory (range 15) 9607 | -8/Materials | Entered Garrison 9607 | -8/Garrison | Accompanied by 7 allies 9623 | -8/Garrison | Triggered checkpoint 9644 | -8/Garrison | Garrison Relay disabled 9688 | -8/Garrison | Expanded RIF knowledge: Patrol Navigation 9727 | -8/Garrison | Expanded RIF knowledge: Autooverride 9907 | -8/Garrison | Triggered checkpoint 10009 | -8/Garrison | Garrison Relay disabled 10043 | -8/Garrison | Discovered exit to Factory (range 9) 10099 | -8/Garrison | Triggered checkpoint 10179 | -8/Garrison | Spotted B-75 Beast 10193 | -8/Garrison | Destroyed B-75 Beast 10343 | -8/Garrison | Triggered checkpoint 10345 | -8/Garrison | Triggered checkpoint 10672 | -8/Garrison | Entered Factory 10672 | -7/Factory | Accompanied by 8 allies 10672 | -7/Factory | Evolved 2 slots: Power x1, Utility x1 11211 | -7/Factory | Central database locked down 11323 | -7/Factory | Fabricated Y-54 Guardian (x2) 11367 | -7/Factory | Fabricated Y-54 Guardian (x2) 11556 | -7/Factory | Fabricated Y-54 Guardian (x2) 11556 | -7/Factory | Build established: Commander-Gunner 12323 | -7/Factory | Build established: Commander-Tank 12525 | -7/Factory | Discovered new exit (range 12) 12640 | -7/Factory | Discovered new exit (range 16) 13155 | -7/Factory | Identified exit to Garrison 13155 | -7/Factory | Entered Garrison 13155 | -7/Garrison | Accompanied by 8 allies 13191 | -7/Garrison | Triggered checkpoint 13326 | -7/Garrison | Destroyed 10 combat bots 13435 | -7/Garrison | Garrison Relay disabled 13567 | -7/Garrison | Triggered checkpoint 13633 | -7/Garrison | Garrison Relay disabled 13655 | -7/Garrison | Expanded RIF knowledge: Alert ID Control 13751 | -7/Garrison | Discovered new exit (range 10) 13823 | -7/Garrison | Triggered checkpoint 13969 | -7/Garrison | Build established: Bothacker-Tank 14046 | -7/Garrison | Discovered new exit (range 10) 14072 | -7/Garrison | Triggered checkpoint 14119 | -7/Garrison | Garrison Relay disabled 14225 | -7/Garrison | Triggered checkpoint 14496 | -7/Garrison | Discovered new exit (range 10) 14527 | -7/Garrison | Triggered checkpoint 14574 | -7/Garrison | Entered Factory 14574 | -7/Factory | Accompanied by 7 allies 14748 | -7/Factory | Repaired Hvy. Treads 14912 | -7/Factory | P-60 Hacker assimilated allied Guardian 4g 15287 | -7/Factory | Fabricated Y-54 Guardian (x2) 15339 | -7/Factory | Fabricated Hvy. Treads (x2) 15356 | -7/Factory | Fabricated Y-54 Guardian (x2) 15445 | -7/Factory | Garrison activated, responded to threat 15546 | -7/Factory | Lost 4 allies 15645 | -7/Factory | Identified exit to Garrison 15645 | -7/Factory | Entered Garrison 15645 | -7/Garrison | Accompanied by 7 allies 15653 | -7/Garrison | Triggered checkpoint 15721 | -7/Garrison | Triggered checkpoint 15837 | -7/Garrison | Triggered checkpoint 15915 | -7/Garrison | Triggered checkpoint 15918 | -7/Garrison | Assimilated ARC 4a with formatsys_deep 15935 | -7/Garrison | Triggered checkpoint 16040 | -7/Garrison | H-XX Assembler disabled 16234 | -7/Garrison | Build established: Commander-Tank 16262 | -7/Garrison | Garrison Relay disabled 16299 | -7/Garrison | Core integrity fell below 50% 16337 | -7/Garrison | Expanded RIF knowledge: Hotswap 16467 | -7/Garrison | Triggered checkpoint 16495 | -7/Garrison | Triggered checkpoint 16520 | -7/Garrison | Garrison Relay disabled 16553 | -7/Garrison | Discovered new exit (range 14) 16578 | -7/Garrison | Entered Factory 16578 | -6/Factory | Accompanied by 4 allies 16578 | -6/Factory | Evolved 2 slots: Propulsion x1, Utility x1 16871 | -6/Factory | Discovered new exit (range 8) 16908 | -6/Factory | Build established: Commander-Gunner 16928 | -6/Factory | First assault squad dispatched 17203 | -6/Factory | Lost 3 allies 17338 | -6/Factory | Repaired Hvy. Treads 17469 | -6/Factory | Build established: Gunner 18047 | -6/Factory | Identified exit to Lower Caves 18776 | -6/Factory | Spotted B-75 Beast 18791 | -6/Factory | Allies destroyed B-75 Beast 18995 | -6/Factory | Cargo convoy interrupted 19096 | -6/Factory | Lost 3 parts (1u2w) 19533 | -6/Factory | Discovered exit to Lower Caves (range 11) 19736 | -6/Factory | Entered Lower Caves 19736 | -6/Lower Caves | Accompanied by 1 ally 19830 | -6/Lower Caves | Encountered a Warlord checkpoint 20070 | -6/Lower Caves | Build established: Tank 20358 | -6/Lower Caves | Attracted the attention of an 0b10 outpost 20411 | -6/Lower Caves | Destroyed 9 combat bots 20441 | -6/Lower Caves | Discovered new exit (range 7) 20510 | -6/Lower Caves | Learned 8 Factory zone layouts 21006 | -6/Lower Caves | Entered another Lower Caves area 21006 | -6/Lower Caves | Accompanied by 2 allies 21023 | -6/Lower Caves | Encountered a Warlord checkpoint 21387 | -6/Lower Caves | Attracted the attention of an 0b10 checkpoint 21425 | -6/Lower Caves | Attracted the attention of an 0b10 outpost 21448 | -6/Lower Caves | Discovered new exit (range 10) 21773 | -6/Lower Caves | P-60 Hacker assimilated allied Soldier 5a 21809 | -6/Lower Caves | Build established: Mutant 21811 | -6/Lower Caves | Learned 8 Research zone layouts 21844 | -6/Lower Caves | Entered Data Miner 21844 | -6/Data Miner | Accompanied by 1 ally 21845 | -6/Data Miner | Discovered new exit (range 6) 21876 | -6/Data Miner | Met Data Miner 21905 | -6/Data Miner | Learned location of Section 7 (-2) 21905 | -6/Data Miner | Acquired the access code to Warlord's prototype stash 21938 | -6/Data Miner | Received God Mode back door access code from Data Miner 21978 | -6/Data Miner | Entered Proximity Caves 21978 | -5/Proximity Caves | Accompanied by 1 ally 22535 | -5/Proximity Caves | Spotted B-75 Beast 22562 | -5/Proximity Caves | Destroyed 8 combat bots 22793 | -5/Proximity Caves | Discovered new exit (range 2) 22865 | -5/Proximity Caves | Learned location of Armory (-3) 22961 | -5/Proximity Caves | Entered Factory 22961 | -5/Factory | Evolved 2 slots: Utility x2 22962 | -5/Factory | Identified exit to Factory 23201 | -5/Factory | Discovered exit to Factory (range 15) 23284 | -5/Factory | Build established: Tank 23420 | -5/Factory | Fabricated Y-64 Sentinel (x2) 23646 | -5/Factory | Build established: Hacker-Tank 24230 | -5/Factory | Build established: Tank 24558 | -5/Factory | Fabricated Particle Reactor (x2) 24633 | -5/Factory | System corruption reached 10% 25229 | -5/Factory | Build established: Gunner 25436 | -5/Factory | Lost 3 parts (2n1u) 25741 | -5/Factory | Build established: Scavenger-Tank 26248 | -5/Factory | Identified exit to Garrison 26248 | -5/Factory | Entered Garrison 26664 | -5/Garrison | Triggered checkpoint 26703 | -5/Garrison | Garrison Relay disabled 26722 | -5/Garrison | Garrison Relay disabled 26738 | -5/Garrison | Triggered checkpoint 26818 | -5/Garrison | Spotted B-75 Beast 26854 | -5/Garrison | Triggered checkpoint 26856 | -5/Garrison | Triggered checkpoint 26893 | -5/Garrison | Destroyed 12 combat bots 26958 | -5/Garrison | Destroyed B-75 Beast 27055 | -5/Garrison | Triggered checkpoint 27055 | -5/Garrison | Triggered checkpoint 27208 | -5/Garrison | Triggered checkpoint 27219 | -5/Garrison | Discovered new exit (range 72) 27219 | -5/Garrison | Discovered new exit (range 26) 27219 | -5/Garrison | Discovered new exit (range 72) 27296 | -5/Garrison | Garrison Relay disabled 27381 | -5/Garrison | Expanded RIF knowledge: Threat Obfuscation 27390 | -5/Garrison | Entered Factory 27690 | -5/Factory | First assault squad dispatched 28035 | -5/Factory | Lost 6 parts (2n2u2w) 28219 | -5/Factory | Core integrity fell below 50% 28273 | -5/Factory | Build established: Scavenger-Gunner 29510 | -5/Factory | Incoming assault squad redirected 29741 | -5/Factory | Build established: Scavenger-Tank 29755 | -5/Factory | Identified exit to Upper Caves 29805 | -5/Factory | Incoming assault squad redirected 29874 | -5/Factory | Spotted B-75 Beast 29979 | -5/Factory | Core integrity fell below 20% 30043 | -5/Factory | Destroyed 12 combat bots 30052 | -5/Factory | Lost 13 parts (1p3n5u4w) 30276 | -5/Factory | System corruption reached 30% 30406 | -5/Factory | Entered Upper Caves 30590 | -5/Upper Caves | Build established: Tank 30777 | -5/Upper Caves | Assimilated G-50 Soldier with FLK Orb 30801 | -5/Upper Caves | Lost 4 parts (2n1u1w) 30882 | -5/Upper Caves | Identified exit to Upper Caves 30991 | -5/Upper Caves | Entered another Upper Caves area 30991 | -5/Upper Caves | Accompanied by 1 ally 31004 | -5/Upper Caves | Discovered exit to Factory (range 11) 31025 | -5/Upper Caves | Build established: Gunner 31036 | -5/Upper Caves | Entered Factory 31036 | -4/Factory | Accompanied by 1 ally 31036 | -4/Factory | Evolved 2 slots: Propulsion x2 31168 | -4/Factory | Identified exit to DSF 31168 | -4/Factory | Entered DSF 31168 | -4/DSF | Encountered a pitched battle between 0b10 and Warlord forces 31168 | -4/DSF | Accompanied by 1 ally 31199 | -4/DSF | Spotted Striker 31256 | -4/DSF | Lost 18 allies 31266 | -4/DSF | Sterilization system engaged 31286 | -4/DSF | Ambient heat levels rising (+10) 31301 | -4/DSF | Ambient heat levels rising (+10) 31304 | -4/DSF | Lost 7 parts (2p1n1u3w) 31316 | -4/DSF | Ambient heat levels rising (+10) 31331 | -4/DSF | Ambient heat levels rising (+10) 31338 | -4/DSF | Discovered new exit (range 15) 31346 | -4/DSF | Ambient heat levels rising (+10) 31361 | -4/DSF | Ambient heat levels rising (+10) 31376 | -4/DSF | Ambient heat levels rising (+10) 31382 | -4/DSF | Lost 5 parts (2n2u1w) 31391 | -4/DSF | Ambient heat levels rising (+10) 31406 | -4/DSF | Ambient heat levels rising (+10) 31421 | -4/DSF | Ambient heat levels rising (+10) 31436 | -4/DSF | Ambient heat levels rising (+10) 31451 | -4/DSF | Ambient heat levels rising (+10) 31466 | -4/DSF | Ambient heat levels rising (+10) 31469 | -4/DSF | Entered Research 31469 | -3/Research | Evolved 2 slots: Utility x2 31470 | -3/Research | Identified exit to Research 31579 | -3/Research | Discovered new exit (range 13) 31584 | -3/Research | Build established: Scavenger-Gunner 31631 | -3/Research | Entered Testing 31722 | -3/Testing | Found Prototype Hackware 31722 | -3/Testing | Identified Ghost Barrier 31807 | -3/Testing | Found Gamma Bomb Array 31917 | -3/Testing | Found Prototype Energy Cannon 31917 | -3/Testing | Identified Potential Cannon 31921 | -3/Testing | Found Potential Cannon 32075 | -3/Testing | Found Prototype Device 32075 | -3/Testing | Identified Adv. Kinecellerator 32094 | -3/Testing | Spotted PD-MGOLXTFN8T 32114 | -3/Testing | Assimilated PD-MGOLXTFN8T with FLK Orb 32142 | -3/Testing | Protovariant out of control (PD-158Z4A9GGR) 32142 | -3/Testing | Unleashed a protovariant (PD-158Z4A9GGR) 32163 | -3/Testing | Found Prototype Energy Cannon 32163 | -3/Testing | Identified Hpw. Disruptor Cannon 32179 | -3/Testing | Spotted Striker 32184 | -3/Testing | Spotted Striker 32195 | -3/Testing | Spotted Alpha 7 32200 | -3/Testing | Destroyed Striker 32207 | -3/Testing | Destroyed Striker 32250 | -3/Testing | Destroyed Alpha 7 32275 | -3/Testing | Stole the SGEMP Prototype 32503 | -3/Testing | Spotted Superbehemoth 32534 | -3/Testing | Assimilated Superbehemoth with FLK Orb 32625 | -3/Testing | System corruption reached 10% 32652 | -3/Testing | System corruption reached 30% 32663 | -3/Testing | Scanned by Researcher 32721 | -3/Testing | Build established: Scavenger-Tank 32749 | -3/Testing | Found Corrupted Prototype Device 32858 | -3/Testing | Found Prototype Energy Gun 32858 | -3/Testing | Identified Hyp. EM Gauss Rifle 33088 | -3/Testing | Assimilated Q963-s with FLK Orb 33091 | -3/Testing | Crushed by falling debris 33122 | -3/Testing | Lost 3 parts (3u) 33131 | -3/Testing | First assault squad dispatched 33278 | -3/Testing | Spotted Investigator 33378 | -3/Testing | Found Prototype Launcher 33378 | -3/Testing | Identified Containment Facilitator 33384 | -3/Testing | Discovered exit to Research (range 15) 33429 | -3/Testing | Found Prototype Ballistic Cannon 33431 | -3/Testing | Identified Omega Cannon 33455 | -3/Testing | Entered Research 33455 | -2/Research | Accompanied by 2 allies 33455 | -2/Research | Evolved 2 slots: Utility x2 33636 | -2/Research | Lost 4 parts (2n2u) 33745 | -2/Research | First assault squad dispatched 33926 | -2/Research | Released all parts (5) 33953 | -2/Research | Spotted B-90 Cyclops 33956 | -2/Research | Lost 18 parts (3p5n7u3w) 33972 | -2/Research | Discovered new exit (range 13) 33972 | -2/Research | Spotted B-90 Cyclops 33977 | -2/Research | Entered Quarantine 34012 | -2/Quarantine | Found Alien Artifact 34088 | -2/Quarantine | Core integrity fell below 50% 34101 | -2/Quarantine | Found Prototype Device 34101 | -2/Quarantine | Identified Exp. ECM Suite 34115 | -2/Quarantine | Lost 3 parts (1n1u1w) 34139 | -2/Quarantine | Core integrity fell below 20% 34159 | -2/Quarantine | Destroyed by H-88 Terminator with Heavy Machine Gun Last Messages --------------- 34124_ O-32 Director uses terminal to summon reinforcements. 34124_ ALERT: Hostiles spotted, dispatching reinforcements to Terminal Q012. 34124_ O-32 Director locks terminal. 34126_ Connecting with Terminal... 34129_ Acquired Imp. Gyrokinetic Inverter. 34131_ Slammed into P-80 Master. 34133_ Centrium Wheel destroyed. 34135_ System corrupted: Matter fused (-8). 34135_ Penetrated by Slug. 34138_ System Shield destroyed. 34145_ Connecting with Terminal... 34154_ Slug penetrates Wall. 34154_ Meson Extractor disabled. 34155_ Slammed into G-73 Enforcer. 34158_ Penetrated by Slug. 34158_ Slug penetrates G-73 Enforcer. 34159_ Centrium Wheel destroyed. 34159_ Slug penetrates H-88 Terminator. Map ----- +----------------------------------------------------+ | ?????????????????????????????????????????????????? | | ?????????????????????????????????????????????????? | | ?????????????????????????????????????????????????? | | ?????????????????????????????????????????????????? | | ?????????????????????????????????????????????????? | | ?????????????????????????????????????????????????? | | ?????????????????????????????????????????????????? | | ?????????????????????????????????????????????????? | | ?????????????????????????????????????????????????? | | ?????????????????????????????????????????????????? | | ?????????????????????????????????????????????????? | | ?????????????????????????????????????????????????? | | ?????????????????????????????????????????????????? | | ???????????#######???????????????????????????????? | | ???????????#"""""#???????????????????????????????? | | ?????????###""T""###?????????????????????????????? | | ?????????# #?????????????????????????????? | | ?????????# """ #?????????????????????????????? | | ?????????# "T" #?????????????????????????????? | | ?????????# " " """ #?????????????????????????????? | | ?????????# " " #????#############????????????? | | ?????????# """ #????# #????????????? | | ?????????# #????# """ """ #????????????? | | ?????????# ]#????# """ """ #????????????? | | #############/########### g""" """ #????????????? | | hx@ p #????????????? | | h #gg"" p""" #????????????? | | " + """ """ *#????????????? | | " # """ """ #????????????? | | " ##################+#+# #????????????? | | " #????????????????????# """ """ #????????????? | | " #????????????????????# """ """ #????????????? | | " ????????????????????# """ """ #????????????? | | " ???????????????????# #????????????? | | ???????????????????##""T""######????????????? | | ???????????????????#"""""#?????????????????? | | ######???????????????????#######?????????????????? | | ?????????????????????????????????????????????????? | | ?????????????????????????????????????????????????? | | ?????????????????????????????????????????????????? | | ?????????????????????????????????????????????????? | | ?????????????????????????????????????????????????? | | ?????????????????????????????????????????????????? | | ?????????????????????????????????????????????????? | | ?????????????????????????????????????????????????? | | ?????????????????????????????????????????????????? | | ?????????????????????????????????????????????????? | | ?????????????????????????????????????????????????? | | ?????????????????????????????????????????????????? | | ?????????????????????????????????????????????????? | +----------------------------------------------------+ Best States ------------- Heat Dissipation 218 Coolant Potential 100 Energy Generation 55 Energy Capacity 600 Matter Stores 300 Matter Capacity 800 Sight Range 16 Robot Scan Range 16 Terrain Scan Density 10 Jamming Range 16 Cloak Strength 3 Power Amplification 40 Additional Mass Support 12 Corruption Block 13 Armor Coverage 1200 Resistance: KI 25 Resistance: TH 15 Resistance: EM 15 Core Shielding 20 Power Shielding 66 Utility Shielding 66 Weapon Cycling 15 Phase Shifting 5 Evasion (%) 62 Targeting Accuracy 6 Melee Accuracy 8 Target Analysis 9 Armor Integrity Analysis 30 Recoil Reduction 4 Matter Filtering 50 Kinecelleration 40 Salvage Targeting 3 Offensive Hacking 22 Defensive Hacking 34 Relay Coupler Types 3 Relay Coupler Value 99 Authchip Count 2 Item Schematics ----------------- Imp. Flight Unit | -9/Materials | Scanalyzed Rnf. Quantum Reactor | -6/Factory | Scanalyzed Combat Drone Bay | -6/Data Miner | Free Lgt. Regenerative Plating | -6/Data Miner | Free Enh. Armored Leg | -6/Data Miner | Free Exp. Heat Sink | -6/Data Miner | Free Cld. Plasma Rifle | -6/Data Miner | Free Myomer Leg | -6/Data Miner | Free Adv. Cryofiber Web | -6/Data Miner | Free Hvy. Disruptor Cannon | -6/Data Miner | Free Lrn. Proton Cannon | -6/Data Miner | Free Stasis Canceller | -5/Factory | Scanalyzed Smartbomb Launcher | -5/Factory | Scanalyzed Hvy. Rocket Launcher | -5/Factory | Scanalyzed Imp. Heavy Treads | -5/Factory | Scanalyzed Exp. Matter Compressor | -3/Testing | Scanalyzed Gamma Bomb Array | -3/Testing | Scanalyzed Adv. Shield Generator | -3/Testing | Scanalyzed Centrium Medium Armor Plating | -3/Testing | Archive Neutron Cannon | -3/Testing | Archive Centrium Heavy Treads | -3/Testing | Archive Exp. Targeting Computer | -3/Testing | Archive Gravity Neutralizer | -3/Testing | Archive Cld. Nuclear Pulse Thruster | -3/Testing | Archive Exp. Cooling System | -3/Testing | Archive Hvy. Tesla Rifle | -3/Testing | Archive Robot Schematics ------------------ Y-54 Guardian | -7/Factory | Hacked H-55 Commando | -7/Factory | Hacked S-27 Virus | -6/Data Miner | Free B-60 Warrior | -6/Data Miner | Free Y-64 Sentinel | -6/Data Miner | Free D-63 Destroyer | -6/Data Miner | Free M-30 Cleanser | -6/Data Miner | Free M-36 Artificer | -3/Testing | Archive Fabricated ------------ Y-54 Guardian | x2 | -7/Factory | Authchip Y-54 Guardian | x2 | -7/Factory | Authchip Y-54 Guardian | x2 | -7/Factory | Authchip Y-54 Guardian | x2 | -7/Factory | Authchip Hvy. Treads | x2 | -7/Factory | Preloaded Y-54 Guardian | x2 | -7/Factory | Authchip Y-64 Sentinel | x2 | -5/Factory Particle Reactor | x2 | -5/Factory | Preloaded Alien Tech Used ----------------- None Achievements -------------- Max Potential War Machine Challenges ------------ None Game ------ Seed BeamLobotomyFlail Manual? 0 Play Time 04:33:10 Cumulative 228.4 hours Start 2024.04.19 @ 19:18:19 End 2024.04.20 @ 00:01:43 Sessions 1 Manual Loads 0 Difficulty Rogue Special Mode None Game No. 177 Rogue 177 Adventurer 0 Explorer 0 Win Type - Total 7 Types 6/0/0/1/0/0/0/0/0 Lore% 73 Gallery% 80 Achievement% 66 Wizard Run 0 Options --------- Layout 2 ASCII 1 Keyboard 0 Movement Mouse Keybinds 0 Fullscreen 2 Font 24/Smallcaps Map View 50x44 Zoom Use 0% Tactical HUD 1 Map Filters NONE Filters NONE Steam 1 RUN: 76763892-7aca-4d90-86e8-48c508408f6f